Workbook

Sheet Import model
A1: Year | B1: Month | C1: N° | D1: Monthly payment | E1: Interest | F1: Insurance | G1: Principal / Month | H1: Balance
A2: =IFERROR(YEAR(Calculator!C30),"") -> 2020 | B2: =IFERROR(VLOOKUP(MONTH(Calculator!C30),'Month mapping'!A:B,2,0),"") -> Aug | C2: =Calculator!D30 -> 1 | D2: =Calculator!E30 -> 5895.182413 | E2: =Calculator!G30 -> 333.3333333 | F2: =Calculator!H30 -> 166.6666667 | G2: =Calculator!I30 -> 5395.182413 | H2: =Calculator!J30 -> 194604.8176
A3: =IFERROR(YEAR(Calculator!C31),"") -> 2020 | B3: =IFERROR(VLOOKUP(MONTH(Calculator!C31),'Month mapping'!A:B,2,0),"") -> Sep | C3: =Calculator!D31 -> 2 | D3: =Calculator!E31 -> 5895.182413 | E3: =Calculator!G31 -> 324.3413626 | F3: =Calculator!H31 -> 166.6666667 | G3: =Calculator!I31 -> 5404.174384 | H3: =Calculator!J31 -> 189200.6432
A4: =IFERROR(YEAR(Calculator!C32),"") -> 2020 | B4: =IFERROR(VLOOKUP(MONTH(Calculator!C32),'Month mapping'!A:B,2,0),"") -> Oct | C4: =Calculator!D32 -> 3 | D4: =Calculator!E32 -> 5895.182413 | E4: =Calculator!G32 -> 315.3344053 | F4: =Calculator!H32 -> 166.6666667 | G4: =Calculator!I32 -> 5413.181341 | H4: =Calculator!J32 -> 183787.4619
A5: =IFERROR(YEAR(Calculator!C33),"") -> 2020 | B5: =IFERROR(VLOOKUP(MONTH(Calculator!C33),'Month mapping'!A:B,2,0),"") -> Nov | C5: =Calculator!D33 -> 4 | D5: =Calculator!E33 -> 5895.182413 | E5: =Calculator!G33 -> 306.3124364 | F5: =Calculator!H33 -> 166.6666667 | G5: =Calculator!I33 -> 5422.20331 | H5: =Calculator!J33 -> 178365.2586
A6: =IFERROR(YEAR(Calculator!C34),"") -> 2020 | B6: =IFERROR(VLOOKUP(MONTH(Calculator!C34),'Month mapping'!A:B,2,0),"") -> Dec | C6: =Calculator!D34 -> 5 | D6: =Calculator!E34 -> 5895.182413 | E6: =Calculator!G34 -> 297.2754309 | F6: =Calculator!H34 -> 166.6666667 | G6: =Calculator!I34 -> 5431.240316 | H6: =Calculator!J34 -> 172934.0182
A7: =IFERROR(YEAR(Calculator!C35),"") -> 2021 | B7: =IFERROR(VLOOKUP(MONTH(Calculator!C35),'Month mapping'!A:B,2,0),"") -> Jan | C7: =Calculator!D35 -> 6 | D7: =Calculator!E35 -> 5895.182413 | E7: =Calculator!G35 -> 288.2233637 | F7: =Calculator!H35 -> 166.6666667 | G7: =Calculator!I35 -> 5440.292383 | H7: =Calculator!J35 -> 167493.7259
A8: =IFERROR(YEAR(Calculator!C36),"") -> 2021 | B8: =IFERROR(VLOOKUP(MONTH(Calculator!C36),'Month mapping'!A:B,2,0),"") -> Feb | C8: =Calculator!D36 -> 7 | D8: =Calculator!E36 -> 5895.182413 | E8: =Calculator!G36 -> 279.1562098 | F8: =Calculator!H36 -> 166.6666667 | G8: =Calculator!I36 -> 5449.359537 | H8: =Calculator!J36 -> 162044.3663
A9: =IFERROR(YEAR(Calculator!C37),"") -> 2021 | B9: =IFERROR(VLOOKUP(MONTH(Calculator!C37),'Month mapping'!A:B,2,0),"") -> Mar | C9: =Calculator!D37 -> 8 | D9: =Calculator!E37 -> 5895.182413 | E9: =Calculator!G37 -> 270.0739439 | F9: =Calculator!H37 -> 166.6666667 | G9: =Calculator!I37 -> 5458.441803 | H9: =Calculator!J37 -> 156585.9245
A10: =IFERROR(YEAR(Calculator!C38),"") -> 2021 | B10: =IFERROR(VLOOKUP(MONTH(Calculator!C38),'Month mapping'!A:B,2,0),"") -> Apr | C10: =Calculator!D38 -> 9 | D10: =Calculator!E38 -> 5895.182413 | E10: =Calculator!G38 -> 260.9765409 | F10: =Calculator!H38 -> 166.6666667 | G10: =Calculator!I38 -> 5467.539206 | H10: =Calculator!J38 -> 151118.3853
A11: =IFERROR(YEAR(Calculator!C39),"") -> 2021 | B11: =IFERROR(VLOOKUP(MONTH(Calculator!C39),'Month mapping'!A:B,2,0),"") -> May | C11: =Calculator!D39 -> 10 | D11: =Calculator!E39 -> 5895.182413 | E11: =Calculator!G39 -> 251.8639755 | F11: =Calculator!H39 -> 166.6666667 | G11: =Calculator!I39 -> 5476.651771 | H11: =Calculator!J39 -> 145641.7335
A12: =IFERROR(YEAR(Calculator!C40),"") -> 2021 | B12: =IFERROR(VLOOKUP(MONTH(Calculator!C40),'Month mapping'!A:B,2,0),"") -> Jun | C12: =Calculator!D40 -> 11 | D12: =Calculator!E40 -> 5895.182413 | E12: =Calculator!G40 -> 242.7362226 | F12: =Calculator!H40 -> 166.6666667 | G12: =Calculator!I40 -> 5485.779524 | H12: =Calculator!J40 -> 140155.954
A13: =IFERROR(YEAR(Calculator!C41),"") -> 2021 | B13: =IFERROR(VLOOKUP(MONTH(Calculator!C41),'Month mapping'!A:B,2,0),"") -> Jul | C13: =Calculator!D41 -> 12 | D13: =Calculator!E41 -> 5895.182413 | E13: =Calculator!G41 -> 233.5932567 | F13: =Calculator!H41 -> 166.6666667 | G13: =Calculator!I41 -> 5494.92249 | H13: =Calculator!J41 -> 134661.0315
A14: =IFERROR(YEAR(Calculator!C42),"") -> 2021 | B14: =IFERROR(VLOOKUP(MONTH(Calculator!C42),'Month mapping'!A:B,2,0),"") -> Aug | C14: =Calculator!D42 -> 13 | D14: =Calculator!E42 -> 5895.182413 | E14: =Calculator!G42 -> 224.4350525 | F14: =Calculator!H42 -> 166.6666667 | G14: =Calculator!I42 -> 5504.080694 | H14: =Calculator!J42 -> 129156.9508
A15: =IFERROR(YEAR(Calculator!C43),"") -> 2021 | B15: =IFERROR(VLOOKUP(MONTH(Calculator!C43),'Month mapping'!A:B,2,0),"") -> Sep | C15: =Calculator!D43 -> 14 | D15: =Calculator!E43 -> 5895.182413 | E15: =Calculator!G43 -> 215.2615847 | F15: =Calculator!H43 -> 166.6666667 | G15: =Calculator!I43 -> 5513.254162 | H15: =Calculator!J43 -> 123643.6967
A16: =IFERROR(YEAR(Calculator!C44),"") -> 2021 | B16: =IFERROR(VLOOKUP(MONTH(Calculator!C44),'Month mapping'!A:B,2,0),"") -> Oct | C16: =Calculator!D44 -> 15 | D16: =Calculator!E44 -> 5895.182413 | E16: =Calculator!G44 -> 206.0728278 | F16: =Calculator!H44 -> 166.6666667 | G16: =Calculator!I44 -> 5522.442919 | H16: =Calculator!J44 -> 118121.2537
A17: =IFERROR(YEAR(Calculator!C45),"") -> 2021 | B17: =IFERROR(VLOOKUP(MONTH(Calculator!C45),'Month mapping'!A:B,2,0),"") -> Nov | C17: =Calculator!D45 -> 16 | D17: =Calculator!E45 -> 5895.182413 | E17: =Calculator!G45 -> 196.8687562 | F17: =Calculator!H45 -> 166.6666667 | G17: =Calculator!I45 -> 5531.64699 | H17: =Calculator!J45 -> 112589.6068
A18: =IFERROR(YEAR(Calculator!C46),"") -> 2021 | B18: =IFERROR(VLOOKUP(MONTH(Calculator!C46),'Month mapping'!A:B,2,0),"") -> Dec | C18: =Calculator!D46 -> 17 | D18: =Calculator!E46 -> 5895.182413 | E18: =Calculator!G46 -> 187.6493446 | F18: =Calculator!H46 -> 166.6666667 | G18: =Calculator!I46 -> 5540.866402 | H18: =Calculator!J46 -> 107048.7404
A19: =IFERROR(YEAR(Calculator!C47),"") -> 2022 | B19: =IFERROR(VLOOKUP(MONTH(Calculator!C47),'Month mapping'!A:B,2,0),"") -> Jan | C19: =Calculator!D47 -> 18 | D19: =Calculator!E47 -> 5895.182413 | E19: =Calculator!G47 -> 178.4145673 | F19: =Calculator!H47 -> 166.6666667 | G19: =Calculator!I47 -> 5550.101179 | H19: =Calculator!J47 -> 101498.6392
A20: =IFERROR(YEAR(Calculator!C48),"") -> 2022 | B20: =IFERROR(VLOOKUP(MONTH(Calculator!C48),'Month mapping'!A:B,2,0),"") -> Feb | C20: =Calculator!D48 -> 19 | D20: =Calculator!E48 -> 5895.182413 | E20: =Calculator!G48 -> 169.1643986 | F20: =Calculator!H48 -> 166.6666667 | G20: =Calculator!I48 -> 5559.351348 | H20: =Calculator!J48 -> 95939.28783
A21: =IFERROR(YEAR(Calculator!C49),"") -> 2022 | B21: =IFERROR(VLOOKUP(MONTH(Calculator!C49),'Month mapping'!A:B,2,0),"") -> Mar | C21: =Calculator!D49 -> 20 | D21: =Calculator!E49 -> 5895.182413 | E21: =Calculator!G49 -> 159.8988131 | F21: =Calculator!H49 -> 166.6666667 | G21: =Calculator!I49 -> 5568.616933 | H21: =Calculator!J49 -> 90370.6709
A22: =IFERROR(YEAR(Calculator!C50),"") -> 2022 | B22: =IFERROR(VLOOKUP(MONTH(Calculator!C50),'Month mapping'!A:B,2,0),"") -> Apr | C22: =Calculator!D50 -> 21 | D22: =Calculator!E50 -> 5895.182413 | E22: =Calculator!G50 -> 150.6177848 | F22: =Calculator!H50 -> 166.6666667 | G22: =Calculator!I50 -> 5577.897962 | H22: =Calculator!J50 -> 84792.77293
A23: =IFERROR(YEAR(Calculator!C51),"") -> 2022 | B23: =IFERROR(VLOOKUP(MONTH(Calculator!C51),'Month mapping'!A:B,2,0),"") -> May | C23: =Calculator!D51 -> 22 | D23: =Calculator!E51 -> 5895.182413 | E23: =Calculator!G51 -> 141.3212882 | F23: =Calculator!H51 -> 166.6666667 | G23: =Calculator!I51 -> 5587.194458 | H23: =Calculator!J51 -> 79205.57848
A24: =IFERROR(YEAR(Calculator!C52),"") -> 2022 | B24: =IFERROR(VLOOKUP(MONTH(Calculator!C52),'Month mapping'!A:B,2,0),"") -> Jun | C24: =Calculator!D52 -> 23 | D24: =Calculator!E52 -> 5895.182413 | E24: =Calculator!G52 -> 132.0092975 | F24: =Calculator!H52 -> 166.6666667 | G24: =Calculator!I52 -> 5596.506449 | H24: =Calculator!J52 -> 73609.07203
A25: =IFERROR(YEAR(Calculator!C53),"") -> 2022 | B25: =IFERROR(VLOOKUP(MONTH(Calculator!C53),'Month mapping'!A:B,2,0),"") -> Jul | C25: =Calculator!D53 -> 24 | D25: =Calculator!E53 -> 5895.182413 | E25: =Calculator!G53 -> 122.6817867 | F25: =Calculator!H53 -> 166.6666667 | G25: =Calculator!I53 -> 5605.83396 | H25: =Calculator!J53 -> 68003.23807
A26: =IFERROR(YEAR(Calculator!C54),"") -> 2022 | B26: =IFERROR(VLOOKUP(MONTH(Calculator!C54),'Month mapping'!A:B,2,0),"") -> Aug | C26: =Calculator!D54 -> 25 | D26: =Calculator!E54 -> 5895.182413 | E26: =Calculator!G54 -> 113.3387301 | F26: =Calculator!H54 -> 166.6666667 | G26: =Calculator!I54 -> 5615.177016 | H26: =Calculator!J54 -> 62388.06105
A27: =IFERROR(YEAR(Calculator!C55),"") -> 2022 | B27: =IFERROR(VLOOKUP(MONTH(Calculator!C55),'Month mapping'!A:B,2,0),"") -> Sep | C27: =Calculator!D55 -> 26 | D27: =Calculator!E55 -> 5895.182413 | E27: =Calculator!G55 -> 103.9801018 | F27: =Calculator!H55 -> 166.6666667 | G27: =Calculator!I55 -> 5624.535645 | H27: =Calculator!J55 -> 56763.52541
A28: =IFERROR(YEAR(Calculator!C56),"") -> 2022 | B28: =IFERROR(VLOOKUP(MONTH(Calculator!C56),'Month mapping'!A:B,2,0),"") -> Oct | C28: =Calculator!D56 -> 27 | D28: =Calculator!E56 -> 5895.182413 | E28: =Calculator!G56 -> 94.60587568 | F28: =Calculator!H56 -> 166.6666667 | G28: =Calculator!I56 -> 5633.909871 | H28: =Calculator!J56 -> 51129.61554
A29: =IFERROR(YEAR(Calculator!C57),"") -> 2022 | B29: =IFERROR(VLOOKUP(MONTH(Calculator!C57),'Month mapping'!A:B,2,0),"") -> Nov | C29: =Calculator!D57 -> 28 | D29: =Calculator!E57 -> 5895.182413 | E29: =Calculator!G57 -> 85.21602589 | F29: =Calculator!H57 -> 166.6666667 | G29: =Calculator!I57 -> 5643.299721 | H29: =Calculator!J57 -> 45486.31582
A30: =IFERROR(YEAR(Calculator!C58),"") -> 2022 | B30: =IFERROR(VLOOKUP(MONTH(Calculator!C58),'Month mapping'!A:B,2,0),"") -> Dec | C30: =Calculator!D58 -> 29 | D30: =Calculator!E58 -> 5895.182413 | E30: =Calculator!G58 -> 75.81052636 | F30: =Calculator!H58 -> 166.6666667 | G30: =Calculator!I58 -> 5652.70522 | H30: =Calculator!J58 -> 39833.6106
A31: =IFERROR(YEAR(Calculator!C59),"") -> 2023 | B31: =IFERROR(VLOOKUP(MONTH(Calculator!C59),'Month mapping'!A:B,2,0),"") -> Jan | C31: =Calculator!D59 -> 30 | D31: =Calculator!E59 -> 5895.182413 | E31: =Calculator!G59 -> 66.38935099 | F31: =Calculator!H59 -> 166.6666667 | G31: =Calculator!I59 -> 5662.126395 | H31: =Calculator!J59 -> 34171.4842
A32: =IFERROR(YEAR(Calculator!C60),"") -> 2023 | B32: =IFERROR(VLOOKUP(MONTH(Calculator!C60),'Month mapping'!A:B,2,0),"") -> Feb | C32: =Calculator!D60 -> 31 | D32: =Calculator!E60 -> 5895.182413 | E32: =Calculator!G60 -> 56.95247367 | F32: =Calculator!H60 -> 166.6666667 | G32: =Calculator!I60 -> 5671.563273 | H32: =Calculator!J60 -> 28499.92093
A33: =IFERROR(YEAR(Calculator!C61),"") -> 2023 | B33: =IFERROR(VLOOKUP(MONTH(Calculator!C61),'Month mapping'!A:B,2,0),"") -> Mar | C33: =Calculator!D61 -> 32 | D33: =Calculator!E61 -> 5895.182413 | E33: =Calculator!G61 -> 47.49986821 | F33: =Calculator!H61 -> 166.6666667 | G33: =Calculator!I61 -> 5681.015878 | H33: =Calculator!J61 -> 22818.90505
A34: =IFERROR(YEAR(Calculator!C62),"") -> 2023 | B34: =IFERROR(VLOOKUP(MONTH(Calculator!C62),'Month mapping'!A:B,2,0),"") -> Apr | C34: =Calculator!D62 -> 33 | D34: =Calculator!E62 -> 5895.182413 | E34: =Calculator!G62 -> 38.03150841 | F34: =Calculator!H62 -> 166.6666667 | G34: =Calculator!I62 -> 5690.484238 | H34: =Calculator!J62 -> 17128.42081
A35: =IFERROR(YEAR(Calculator!C63),"") -> 2023 | B35: =IFERROR(VLOOKUP(MONTH(Calculator!C63),'Month mapping'!A:B,2,0),"") -> May | C35: =Calculator!D63 -> 34 | D35: =Calculator!E63 -> 5895.182413 | E35: =Calculator!G63 -> 28.54736802 | F35: =Calculator!H63 -> 166.6666667 | G35: =Calculator!I63 -> 5699.968378 | H35: =Calculator!J63 -> 11428.45243
A36: =IFERROR(YEAR(Calculator!C64),"") -> 2023 | B36: =IFERROR(VLOOKUP(MONTH(Calculator!C64),'Month mapping'!A:B,2,0),"") -> Jun | C36: =Calculator!D64 -> 35 | D36: =Calculator!E64 -> 5895.182413 | E36: =Calculator!G64 -> 19.04742072 | F36: =Calculator!H64 -> 166.6666667 | G36: =Calculator!I64 -> 5709.468326 | H36: =Calculator!J64 -> 5718.984106
A37: =IFERROR(YEAR(Calculator!C65),"") -> 2023 | B37: =IFERROR(VLOOKUP(MONTH(Calculator!C65),'Month mapping'!A:B,2,0),"") -> Jul | C37: =Calculator!D65 -> 36 | D37: =Calculator!E65 -> 5895.182413 | E37: =Calculator!G65 -> 9.531640177 | F37: =Calculator!H65 -> 166.6666667 | G37: =Calculator!I65 -> 5718.984106 | H37: =Calculator!J65 -> 8.190939482e-09
A38: =IFERROR(YEAR(Calculator!C66),"") ->  | B38: =IFERROR(VLOOKUP(MONTH(Calculator!C66),'Month mapping'!A:B,2,0),"") ->  | C38: =Calculator!D66 ->  | D38: =Calculator!E66 ->  | E38: =Calculator!G66 ->  | F38: =Calculator!H66 ->  | G38: =Calculator!I66 ->  | H38: =Calculator!J66 -> 
A39: =IFERROR(YEAR(Calculator!C67),"") ->  | B39: =IFERROR(VLOOKUP(MONTH(Calculator!C67),'Month mapping'!A:B,2,0),"") ->  | C39: =Calculator!D67 ->  | D39: =Calculator!E67 ->  | E39: =Calculator!G67 ->  | F39: =Calculator!H67 ->  | G39: =Calculator!I67 ->  | H39: =Calculator!J67 -> 
A40: =IFERROR(YEAR(Calculator!C68),"") ->  | B40: =IFERROR(VLOOKUP(MONTH(Calculator!C68),'Month mapping'!A:B,2,0),"") ->  | C40: =Calculator!D68 ->  | D40: =Calculator!E68 ->  | E40: =Calculator!G68 ->  | F40: =Calculator!H68 ->  | G40: =Calculator!I68 ->  | H40: =Calculator!J68 -> 
A41: =IFERROR(YEAR(Calculator!C69),"") ->  | B41: =IFERROR(VLOOKUP(MONTH(Calculator!C69),'Month mapping'!A:B,2,0),"") ->  | C41: =Calculator!D69 ->  | D41: =Calculator!E69 ->  | E41: =Calculator!G69 ->  | F41: =Calculator!H69 ->  | G41: =Calculator!I69 ->  | H41: =Calculator!J69 -> 
A42: =IFERROR(YEAR(Calculator!C70),"") ->  | B42: =IFERROR(VLOOKUP(MONTH(Calculator!C70),'Month mapping'!A:B,2,0),"") ->  | C42: =Calculator!D70 ->  | D42: =Calculator!E70 ->  | E42: =Calculator!G70 ->  | F42: =Calculator!H70 ->  | G42: =Calculator!I70 ->  | H42: =Calculator!J70 -> 
A43: =IFERROR(YEAR(Calculator!C71),"") ->  | B43: =IFERROR(VLOOKUP(MONTH(Calculator!C71),'Month mapping'!A:B,2,0),"") ->  | C43: =Calculator!D71 ->  | D43: =Calculator!E71 ->  | E43: =Calculator!G71 ->  | F43: =Calculator!H71 ->  | G43: =Calculator!I71 ->  | H43: =Calculator!J71 -> 
A44: =IFERROR(YEAR(Calculator!C72),"") ->  | B44: =IFERROR(VLOOKUP(MONTH(Calculator!C72),'Month mapping'!A:B,2,0),"") ->  | C44: =Calculator!D72 ->  | D44: =Calculator!E72 ->  | E44: =Calculator!G72 ->  | F44: =Calculator!H72 ->  | G44: =Calculator!I72 ->  | H44: =Calculator!J72 -> 
A45: =IFERROR(YEAR(Calculator!C73),"") ->  | B45: =IFERROR(VLOOKUP(MONTH(Calculator!C73),'Month mapping'!A:B,2,0),"") ->  | C45: =Calculator!D73 ->  | D45: =Calculator!E73 ->  | E45: =Calculator!G73 ->  | F45: =Calculator!H73 ->  | G45: =Calculator!I73 ->  | H45: =Calculator!J73 -> 
A46: =IFERROR(YEAR(Calculator!C74),"") ->  | B46: =IFERROR(VLOOKUP(MONTH(Calculator!C74),'Month mapping'!A:B,2,0),"") ->  | C46: =Calculator!D74 ->  | D46: =Calculator!E74 ->  | E46: =Calculator!G74 ->  | F46: =Calculator!H74 ->  | G46: =Calculator!I74 ->  | H46: =Calculator!J74 -> 
A47: =IFERROR(YEAR(Calculator!C75),"") ->  | B47: =IFERROR(VLOOKUP(MONTH(Calculator!C75),'Month mapping'!A:B,2,0),"") ->  | C47: =Calculator!D75 ->  | D47: =Calculator!E75 ->  | E47: =Calculator!G75 ->  | F47: =Calculator!H75 ->  | G47: =Calculator!I75 ->  | H47: =Calculator!J75 -> 
A48: =IFERROR(YEAR(Calculator!C76),"") ->  | B48: =IFERROR(VLOOKUP(MONTH(Calculator!C76),'Month mapping'!A:B,2,0),"") ->  | C48: =Calculator!D76 ->  | D48: =Calculator!E76 ->  | E48: =Calculator!G76 ->  | F48: =Calculator!H76 ->  | G48: =Calculator!I76 ->  | H48: =Calculator!J76 -> 
A49: =IFERROR(YEAR(Calculator!C77),"") ->  | B49: =IFERROR(VLOOKUP(MONTH(Calculator!C77),'Month mapping'!A:B,2,0),"") ->  | C49: =Calculator!D77 ->  | D49: =Calculator!E77 ->  | E49: =Calculator!G77 ->  | F49: =Calculator!H77 ->  | G49: =Calculator!I77 ->  | H49: =Calculator!J77 -> 
A50: =IFERROR(YEAR(Calculator!C78),"") ->  | B50: =IFERROR(VLOOKUP(MONTH(Calculator!C78),'Month mapping'!A:B,2,0),"") ->  | C50: =Calculator!D78 ->  | D50: =Calculator!E78 ->  | E50: =Calculator!G78 ->  | F50: =Calculator!H78 ->  | G50: =Calculator!I78 ->  | H50: =Calculator!J78 -> 
A51: =IFERROR(YEAR(Calculator!C79),"") ->  | B51: =IFERROR(VLOOKUP(MONTH(Calculator!C79),'Month mapping'!A:B,2,0),"") ->  | C51: =Calculator!D79 ->  | D51: =Calculator!E79 ->  | E51: =Calculator!G79 ->  | F51: =Calculator!H79 ->  | G51: =Calculator!I79 ->  | H51: =Calculator!J79 -> 
A52: =IFERROR(YEAR(Calculator!C80),"") ->  | B52: =IFERROR(VLOOKUP(MONTH(Calculator!C80),'Month mapping'!A:B,2,0),"") ->  | C52: =Calculator!D80 ->  | D52: =Calculator!E80 ->  | E52: =Calculator!G80 ->  | F52: =Calculator!H80 ->  | G52: =Calculator!I80 ->  | H52: =Calculator!J80 -> 
A53: =IFERROR(YEAR(Calculator!C81),"") ->  | B53: =IFERROR(VLOOKUP(MONTH(Calculator!C81),'Month mapping'!A:B,2,0),"") ->  | C53: =Calculator!D81 ->  | D53: =Calculator!E81 ->  | E53: =Calculator!G81 ->  | F53: =Calculator!H81 ->  | G53: =Calculator!I81 ->  | H53: =Calculator!J81 -> 
A54: =IFERROR(YEAR(Calculator!C82),"") ->  | B54: =IFERROR(VLOOKUP(MONTH(Calculator!C82),'Month mapping'!A:B,2,0),"") ->  | C54: =Calculator!D82 ->  | D54: =Calculator!E82 ->  | E54: =Calculator!G82 ->  | F54: =Calculator!H82 ->  | G54: =Calculator!I82 ->  | H54: =Calculator!J82 -> 
A55: =IFERROR(YEAR(Calculator!C83),"") ->  | B55: =IFERROR(VLOOKUP(MONTH(Calculator!C83),'Month mapping'!A:B,2,0),"") ->  | C55: =Calculator!D83 ->  | D55: =Calculator!E83 ->  | E55: =Calculator!G83 ->  | F55: =Calculator!H83 ->  | G55: =Calculator!I83 ->  | H55: =Calculator!J83 -> 
A56: =IFERROR(YEAR(Calculator!C84),"") ->  | B56: =IFERROR(VLOOKUP(MONTH(Calculator!C84),'Month mapping'!A:B,2,0),"") ->  | C56: =Calculator!D84 ->  | D56: =Calculator!E84 ->  | E56: =Calculator!G84 ->  | F56: =Calculator!H84 ->  | G56: =Calculator!I84 ->  | H56: =Calculator!J84 -> 
A57: =IFERROR(YEAR(Calculator!C85),"") ->  | B57: =IFERROR(VLOOKUP(MONTH(Calculator!C85),'Month mapping'!A:B,2,0),"") ->  | C57: =Calculator!D85 ->  | D57: =Calculator!E85 ->  | E57: =Calculator!G85 ->  | F57: =Calculator!H85 ->  | G57: =Calculator!I85 ->  | H57: =Calculator!J85 -> 
A58: =IFERROR(YEAR(Calculator!C86),"") ->  | B58: =IFERROR(VLOOKUP(MONTH(Calculator!C86),'Month mapping'!A:B,2,0),"") ->  | C58: =Calculator!D86 ->  | D58: =Calculator!E86 ->  | E58: =Calculator!G86 ->  | F58: =Calculator!H86 ->  | G58: =Calculator!I86 ->  | H58: =Calculator!J86 -> 
A59: =IFERROR(YEAR(Calculator!C87),"") ->  | B59: =IFERROR(VLOOKUP(MONTH(Calculator!C87),'Month mapping'!A:B,2,0),"") ->  | C59: =Calculator!D87 ->  | D59: =Calculator!E87 ->  | E59: =Calculator!G87 ->  | F59: =Calculator!H87 ->  | G59: =Calculator!I87 ->  | H59: =Calculator!J87 -> 
A60: =IFERROR(YEAR(Calculator!C88),"") ->  | B60: =IFERROR(VLOOKUP(MONTH(Calculator!C88),'Month mapping'!A:B,2,0),"") ->  | C60: =Calculator!D88 ->  | D60: =Calculator!E88 ->  | E60: =Calculator!G88 ->  | F60: =Calculator!H88 ->  | G60: =Calculator!I88 ->  | H60: =Calculator!J88 -> 
A61: =IFERROR(YEAR(Calculator!C89),"") ->  | B61: =IFERROR(VLOOKUP(MONTH(Calculator!C89),'Month mapping'!A:B,2,0),"") ->  | C61: =Calculator!D89 ->  | D61: =Calculator!E89 ->  | E61: =Calculator!G89 ->  | F61: =Calculator!H89 ->  | G61: =Calculator!I89 ->  | H61: =Calculator!J89 -> 
A62: =IFERROR(YEAR(Calculator!C90),"") ->  | B62: =IFERROR(VLOOKUP(MONTH(Calculator!C90),'Month mapping'!A:B,2,0),"") ->  | C62: =Calculator!D90 ->  | D62: =Calculator!E90 ->  | E62: =Calculator!G90 ->  | F62: =Calculator!H90 ->  | G62: =Calculator!I90 ->  | H62: =Calculator!J90 -> 
A63: =IFERROR(YEAR(Calculator!C91),"") ->  | B63: =IFERROR(VLOOKUP(MONTH(Calculator!C91),'Month mapping'!A:B,2,0),"") ->  | C63: =Calculator!D91 ->  | D63: =Calculator!E91 ->  | E63: =Calculator!G91 ->  | F63: =Calculator!H91 ->  | G63: =Calculator!I91 ->  | H63: =Calculator!J91 -> 
A64: =IFERROR(YEAR(Calculator!C92),"") ->  | B64: =IFERROR(VLOOKUP(MONTH(Calculator!C92),'Month mapping'!A:B,2,0),"") ->  | C64: =Calculator!D92 ->  | D64: =Calculator!E92 ->  | E64: =Calculator!G92 ->  | F64: =Calculator!H92 ->  | G64: =Calculator!I92 ->  | H64: =Calculator!J92 -> 
A65: =IFERROR(YEAR(Calculator!C93),"") ->  | B65: =IFERROR(VLOOKUP(MONTH(Calculator!C93),'Month mapping'!A:B,2,0),"") ->  | C65: =Calculator!D93 ->  | D65: =Calculator!E93 ->  | E65: =Calculator!G93 ->  | F65: =Calculator!H93 ->  | G65: =Calculator!I93 ->  | H65: =Calculator!J93 -> 
A66: =IFERROR(YEAR(Calculator!C94),"") ->  | B66: =IFERROR(VLOOKUP(MONTH(Calculator!C94),'Month mapping'!A:B,2,0),"") ->  | C66: =Calculator!D94 ->  | D66: =Calculator!E94 ->  | E66: =Calculator!G94 ->  | F66: =Calculator!H94 ->  | G66: =Calculator!I94 ->  | H66: =Calculator!J94 -> 
A67: =IFERROR(YEAR(Calculator!C95),"") ->  | B67: =IFERROR(VLOOKUP(MONTH(Calculator!C95),'Month mapping'!A:B,2,0),"") ->  | C67: =Calculator!D95 ->  | D67: =Calculator!E95 ->  | E67: =Calculator!G95 ->  | F67: =Calculator!H95 ->  | G67: =Calculator!I95 ->  | H67: =Calculator!J95 -> 
A68: =IFERROR(YEAR(Calculator!C96),"") ->  | B68: =IFERROR(VLOOKUP(MONTH(Calculator!C96),'Month mapping'!A:B,2,0),"") ->  | C68: =Calculator!D96 ->  | D68: =Calculator!E96 ->  | E68: =Calculator!G96 ->  | F68: =Calculator!H96 ->  | G68: =Calculator!I96 ->  | H68: =Calculator!J96 -> 
A69: =IFERROR(YEAR(Calculator!C97),"") ->  | B69: =IFERROR(VLOOKUP(MONTH(Calculator!C97),'Month mapping'!A:B,2,0),"") ->  | C69: =Calculator!D97 ->  | D69: =Calculator!E97 ->  | E69: =Calculator!G97 ->  | F69: =Calculator!H97 ->  | G69: =Calculator!I97 ->  | H69: =Calculator!J97 -> 
A70: =IFERROR(YEAR(Calculator!C98),"") ->  | B70: =IFERROR(VLOOKUP(MONTH(Calculator!C98),'Month mapping'!A:B,2,0),"") ->  | C70: =Calculator!D98 ->  | D70: =Calculator!E98 ->  | E70: =Calculator!G98 ->  | F70: =Calculator!H98 ->  | G70: =Calculator!I98 ->  | H70: =Calculator!J98 -> 
A71: =IFERROR(YEAR(Calculator!C99),"") ->  | B71: =IFERROR(VLOOKUP(MONTH(Calculator!C99),'Month mapping'!A:B,2,0),"") ->  | C71: =Calculator!D99 ->  | D71: =Calculator!E99 ->  | E71: =Calculator!G99 ->  | F71: =Calculator!H99 ->  | G71: =Calculator!I99 ->  | H71: =Calculator!J99 -> 
A72: =IFERROR(YEAR(Calculator!C100),"") ->  | B72: =IFERROR(VLOOKUP(MONTH(Calculator!C100),'Month mapping'!A:B,2,0),"") ->  | C72: =Calculator!D100 ->  | D72: =Calculator!E100 ->  | E72: =Calculator!G100 ->  | F72: =Calculator!H100 ->  | G72: =Calculator!I100 ->  | H72: =Calculator!J100 -> 
A73: =IFERROR(YEAR(Calculator!C101),"") ->  | B73: =IFERROR(VLOOKUP(MONTH(Calculator!C101),'Month mapping'!A:B,2,0),"") ->  | C73: =Calculator!D101 ->  | D73: =Calculator!E101 ->  | E73: =Calculator!G101 ->  | F73: =Calculator!H101 ->  | G73: =Calculator!I101 ->  | H73: =Calculator!J101 -> 
A74: =IFERROR(YEAR(Calculator!C102),"") ->  | B74: =IFERROR(VLOOKUP(MONTH(Calculator!C102),'Month mapping'!A:B,2,0),"") ->  | C74: =Calculator!D102 ->  | D74: =Calculator!E102 ->  | E74: =Calculator!G102 ->  | F74: =Calculator!H102 ->  | G74: =Calculator!I102 ->  | H74: =Calculator!J102 -> 
A75: =IFERROR(YEAR(Calculator!C103),"") ->  | B75: =IFERROR(VLOOKUP(MONTH(Calculator!C103),'Month mapping'!A:B,2,0),"") ->  | C75: =Calculator!D103 ->  | D75: =Calculator!E103 ->  | E75: =Calculator!G103 ->  | F75: =Calculator!H103 ->  | G75: =Calculator!I103 ->  | H75: =Calculator!J103 -> 
A76: =IFERROR(YEAR(Calculator!C104),"") ->  | B76: =IFERROR(VLOOKUP(MONTH(Calculator!C104),'Month mapping'!A:B,2,0),"") ->  | C76: =Calculator!D104 ->  | D76: =Calculator!E104 ->  | E76: =Calculator!G104 ->  | F76: =Calculator!H104 ->  | G76: =Calculator!I104 ->  | H76: =Calculator!J104 -> 
A77: =IFERROR(YEAR(Calculator!C105),"") ->  | B77: =IFERROR(VLOOKUP(MONTH(Calculator!C105),'Month mapping'!A:B,2,0),"") ->  | C77: =Calculator!D105 ->  | D77: =Calculator!E105 ->  | E77: =Calculator!G105 ->  | F77: =Calculator!H105 ->  | G77: =Calculator!I105 ->  | H77: =Calculator!J105 -> 
A78: =IFERROR(YEAR(Calculator!C106),"") ->  | B78: =IFERROR(VLOOKUP(MONTH(Calculator!C106),'Month mapping'!A:B,2,0),"") ->  | C78: =Calculator!D106 ->  | D78: =Calculator!E106 ->  | E78: =Calculator!G106 ->  | F78: =Calculator!H106 ->  | G78: =Calculator!I106 ->  | H78: =Calculator!J106 -> 
A79: =IFERROR(YEAR(Calculator!C107),"") ->  | B79: =IFERROR(VLOOKUP(MONTH(Calculator!C107),'Month mapping'!A:B,2,0),"") ->  | C79: =Calculator!D107 ->  | D79: =Calculator!E107 ->  | E79: =Calculator!G107 ->  | F79: =Calculator!H107 ->  | G79: =Calculator!I107 ->  | H79: =Calculator!J107 -> 
A80: =IFERROR(YEAR(Calculator!C108),"") ->  | B80: =IFERROR(VLOOKUP(MONTH(Calculator!C108),'Month mapping'!A:B,2,0),"") ->  | C80: =Calculator!D108 ->  | D80: =Calculator!E108 ->  | E80: =Calculator!G108 ->  | F80: =Calculator!H108 ->  | G80: =Calculator!I108 ->  | H80: =Calculator!J108 -> 
A81: =IFERROR(YEAR(Calculator!C109),"") ->  | B81: =IFERROR(VLOOKUP(MONTH(Calculator!C109),'Month mapping'!A:B,2,0),"") ->  | C81: =Calculator!D109 ->  | D81: =Calculator!E109 ->  | E81: =Calculator!G109 ->  | F81: =Calculator!H109 ->  | G81: =Calculator!I109 ->  | H81: =Calculator!J109 -> 
A82: =IFERROR(YEAR(Calculator!C110),"") ->  | B82: =IFERROR(VLOOKUP(MONTH(Calculator!C110),'Month mapping'!A:B,2,0),"") ->  | C82: =Calculator!D110 ->  | D82: =Calculator!E110 ->  | E82: =Calculator!G110 ->  | F82: =Calculator!H110 ->  | G82: =Calculator!I110 ->  | H82: =Calculator!J110 -> 
A83: =IFERROR(YEAR(Calculator!C111),"") ->  | B83: =IFERROR(VLOOKUP(MONTH(Calculator!C111),'Month mapping'!A:B,2,0),"") ->  | C83: =Calculator!D111 ->  | D83: =Calculator!E111 ->  | E83: =Calculator!G111 ->  | F83: =Calculator!H111 ->  | G83: =Calculator!I111 ->  | H83: =Calculator!J111 -> 
A84: =IFERROR(YEAR(Calculator!C112),"") ->  | B84: =IFERROR(VLOOKUP(MONTH(Calculator!C112),'Month mapping'!A:B,2,0),"") ->  | C84: =Calculator!D112 ->  | D84: =Calculator!E112 ->  | E84: =Calculator!G112 ->  | F84: =Calculator!H112 ->  | G84: =Calculator!I112 ->  | H84: =Calculator!J112 -> 
A85: =IFERROR(YEAR(Calculator!C113),"") ->  | B85: =IFERROR(VLOOKUP(MONTH(Calculator!C113),'Month mapping'!A:B,2,0),"") ->  | C85: =Calculator!D113 ->  | D85: =Calculator!E113 ->  | E85: =Calculator!G113 ->  | F85: =Calculator!H113 ->  | G85: =Calculator!I113 ->  | H85: =Calculator!J113 -> 
A86: =IFERROR(YEAR(Calculator!C114),"") ->  | B86: =IFERROR(VLOOKUP(MONTH(Calculator!C114),'Month mapping'!A:B,2,0),"") ->  | C86: =Calculator!D114 ->  | D86: =Calculator!E114 ->  | E86: =Calculator!G114 ->  | F86: =Calculator!H114 ->  | G86: =Calculator!I114 ->  | H86: =Calculator!J114 -> 
A87: =IFERROR(YEAR(Calculator!C115),"") ->  | B87: =IFERROR(VLOOKUP(MONTH(Calculator!C115),'Month mapping'!A:B,2,0),"") ->  | C87: =Calculator!D115 ->  | D87: =Calculator!E115 ->  | E87: =Calculator!G115 ->  | F87: =Calculator!H115 ->  | G87: =Calculator!I115 ->  | H87: =Calculator!J115 -> 
A88: =IFERROR(YEAR(Calculator!C116),"") ->  | B88: =IFERROR(VLOOKUP(MONTH(Calculator!C116),'Month mapping'!A:B,2,0),"") ->  | C88: =Calculator!D116 ->  | D88: =Calculator!E116 ->  | E88: =Calculator!G116 ->  | F88: =Calculator!H116 ->  | G88: =Calculator!I116 ->  | H88: =Calculator!J116 -> 
A89: =IFERROR(YEAR(Calculator!C117),"") ->  | B89: =IFERROR(VLOOKUP(MONTH(Calculator!C117),'Month mapping'!A:B,2,0),"") ->  | C89: =Calculator!D117 ->  | D89: =Calculator!E117 ->  | E89: =Calculator!G117 ->  | F89: =Calculator!H117 ->  | G89: =Calculator!I117 ->  | H89: =Calculator!J117 -> 
A90: =IFERROR(YEAR(Calculator!C118),"") ->  | B90: =IFERROR(VLOOKUP(MONTH(Calculator!C118),'Month mapping'!A:B,2,0),"") ->  | C90: =Calculator!D118 ->  | D90: =Calculator!E118 ->  | E90: =Calculator!G118 ->  | F90: =Calculator!H118 ->  | G90: =Calculator!I118 ->  | H90: =Calculator!J118 -> 
A91: =IFERROR(YEAR(Calculator!C119),"") ->  | B91: =IFERROR(VLOOKUP(MONTH(Calculator!C119),'Month mapping'!A:B,2,0),"") ->  | C91: =Calculator!D119 ->  | D91: =Calculator!E119 ->  | E91: =Calculator!G119 ->  | F91: =Calculator!H119 ->  | G91: =Calculator!I119 ->  | H91: =Calculator!J119 -> 
A92: =IFERROR(YEAR(Calculator!C120),"") ->  | B92: =IFERROR(VLOOKUP(MONTH(Calculator!C120),'Month mapping'!A:B,2,0),"") ->  | C92: =Calculator!D120 ->  | D92: =Calculator!E120 ->  | E92: =Calculator!G120 ->  | F92: =Calculator!H120 ->  | G92: =Calculator!I120 ->  | H92: =Calculator!J120 -> 
A93: =IFERROR(YEAR(Calculator!C121),"") ->  | B93: =IFERROR(VLOOKUP(MONTH(Calculator!C121),'Month mapping'!A:B,2,0),"") ->  | C93: =Calculator!D121 ->  | D93: =Calculator!E121 ->  | E93: =Calculator!G121 ->  | F93: =Calculator!H121 ->  | G93: =Calculator!I121 ->  | H93: =Calculator!J121 -> 
A94: =IFERROR(YEAR(Calculator!C122),"") ->  | B94: =IFERROR(VLOOKUP(MONTH(Calculator!C122),'Month mapping'!A:B,2,0),"") ->  | C94: =Calculator!D122 ->  | D94: =Calculator!E122 ->  | E94: =Calculator!G122 ->  | F94: =Calculator!H122 ->  | G94: =Calculator!I122 ->  | H94: =Calculator!J122 -> 
A95: =IFERROR(YEAR(Calculator!C123),"") ->  | B95: =IFERROR(VLOOKUP(MONTH(Calculator!C123),'Month mapping'!A:B,2,0),"") ->  | C95: =Calculator!D123 ->  | D95: =Calculator!E123 ->  | E95: =Calculator!G123 ->  | F95: =Calculator!H123 ->  | G95: =Calculator!I123 ->  | H95: =Calculator!J123 -> 
A96: =IFERROR(YEAR(Calculator!C124),"") ->  | B96: =IFERROR(VLOOKUP(MONTH(Calculator!C124),'Month mapping'!A:B,2,0),"") ->  | C96: =Calculator!D124 ->  | D96: =Calculator!E124 ->  | E96: =Calculator!G124 ->  | F96: =Calculator!H124 ->  | G96: =Calculator!I124 ->  | H96: =Calculator!J124 -> 
A97: =IFERROR(YEAR(Calculator!C125),"") ->  | B97: =IFERROR(VLOOKUP(MONTH(Calculator!C125),'Month mapping'!A:B,2,0),"") ->  | C97: =Calculator!D125 ->  | D97: =Calculator!E125 ->  | E97: =Calculator!G125 ->  | F97: =Calculator!H125 ->  | G97: =Calculator!I125 ->  | H97: =Calculator!J125 -> 
A98: =IFERROR(YEAR(Calculator!C126),"") ->  | B98: =IFERROR(VLOOKUP(MONTH(Calculator!C126),'Month mapping'!A:B,2,0),"") ->  | C98: =Calculator!D126 ->  | D98: =Calculator!E126 ->  | E98: =Calculator!G126 ->  | F98: =Calculator!H126 ->  | G98: =Calculator!I126 ->  | H98: =Calculator!J126 -> 
A99: =IFERROR(YEAR(Calculator!C127),"") ->  | B99: =IFERROR(VLOOKUP(MONTH(Calculator!C127),'Month mapping'!A:B,2,0),"") ->  | C99: =Calculator!D127 ->  | D99: =Calculator!E127 ->  | E99: =Calculator!G127 ->  | F99: =Calculator!H127 ->  | G99: =Calculator!I127 ->  | H99: =Calculator!J127 -> 
A100: =IFERROR(YEAR(Calculator!C128),"") ->  | B100: =IFERROR(VLOOKUP(MONTH(Calculator!C128),'Month mapping'!A:B,2,0),"") ->  | C100: =Calculator!D128 ->  | D100: =Calculator!E128 ->  | E100: =Calculator!G128 ->  | F100: =Calculator!H128 ->  | G100: =Calculator!I128 ->  | H100: =Calculator!J128 -> 
A101: =IFERROR(YEAR(Calculator!C129),"") ->  | B101: =IFERROR(VLOOKUP(MONTH(Calculator!C129),'Month mapping'!A:B,2,0),"") ->  | C101: =Calculator!D129 ->  | D101: =Calculator!E129 ->  | E101: =Calculator!G129 ->  | F101: =Calculator!H129 ->  | G101: =Calculator!I129 ->  | H101: =Calculator!J129 -> 
A102: =IFERROR(YEAR(Calculator!C130),"") ->  | B102: =IFERROR(VLOOKUP(MONTH(Calculator!C130),'Month mapping'!A:B,2,0),"") ->  | C102: =Calculator!D130 ->  | D102: =Calculator!E130 ->  | E102: =Calculator!G130 ->  | F102: =Calculator!H130 ->  | G102: =Calculator!I130 ->  | H102: =Calculator!J130 -> 
A103: =IFERROR(YEAR(Calculator!C131),"") ->  | B103: =IFERROR(VLOOKUP(MONTH(Calculator!C131),'Month mapping'!A:B,2,0),"") ->  | C103: =Calculator!D131 ->  | D103: =Calculator!E131 ->  | E103: =Calculator!G131 ->  | F103: =Calculator!H131 ->  | G103: =Calculator!I131 ->  | H103: =Calculator!J131 -> 
A104: =IFERROR(YEAR(Calculator!C132),"") ->  | B104: =IFERROR(VLOOKUP(MONTH(Calculator!C132),'Month mapping'!A:B,2,0),"") ->  | C104: =Calculator!D132 ->  | D104: =Calculator!E132 ->  | E104: =Calculator!G132 ->  | F104: =Calculator!H132 ->  | G104: =Calculator!I132 ->  | H104: =Calculator!J132 -> 
A105: =IFERROR(YEAR(Calculator!C133),"") ->  | B105: =IFERROR(VLOOKUP(MONTH(Calculator!C133),'Month mapping'!A:B,2,0),"") ->  | C105: =Calculator!D133 ->  | D105: =Calculator!E133 ->  | E105: =Calculator!G133 ->  | F105: =Calculator!H133 ->  | G105: =Calculator!I133 ->  | H105: =Calculator!J133 -> 
A106: =IFERROR(YEAR(Calculator!C134),"") ->  | B106: =IFERROR(VLOOKUP(MONTH(Calculator!C134),'Month mapping'!A:B,2,0),"") ->  | C106: =Calculator!D134 ->  | D106: =Calculator!E134 ->  | E106: =Calculator!G134 ->  | F106: =Calculator!H134 ->  | G106: =Calculator!I134 ->  | H106: =Calculator!J134 -> 
A107: =IFERROR(YEAR(Calculator!C135),"") ->  | B107: =IFERROR(VLOOKUP(MONTH(Calculator!C135),'Month mapping'!A:B,2,0),"") ->  | C107: =Calculator!D135 ->  | D107: =Calculator!E135 ->  | E107: =Calculator!G135 ->  | F107: =Calculator!H135 ->  | G107: =Calculator!I135 ->  | H107: =Calculator!J135 -> 
A108: =IFERROR(YEAR(Calculator!C136),"") ->  | B108: =IFERROR(VLOOKUP(MONTH(Calculator!C136),'Month mapping'!A:B,2,0),"") ->  | C108: =Calculator!D136 ->  | D108: =Calculator!E136 ->  | E108: =Calculator!G136 ->  | F108: =Calculator!H136 ->  | G108: =Calculator!I136 ->  | H108: =Calculator!J136 -> 
A109: =IFERROR(YEAR(Calculator!C137),"") ->  | B109: =IFERROR(VLOOKUP(MONTH(Calculator!C137),'Month mapping'!A:B,2,0),"") ->  | C109: =Calculator!D137 ->  | D109: =Calculator!E137 ->  | E109: =Calculator!G137 ->  | F109: =Calculator!H137 ->  | G109: =Calculator!I137 ->  | H109: =Calculator!J137 -> 
A110: =IFERROR(YEAR(Calculator!C138),"") ->  | B110: =IFERROR(VLOOKUP(MONTH(Calculator!C138),'Month mapping'!A:B,2,0),"") ->  | C110: =Calculator!D138 ->  | D110: =Calculator!E138 ->  | E110: =Calculator!G138 ->  | F110: =Calculator!H138 ->  | G110: =Calculator!I138 ->  | H110: =Calculator!J138 -> 
A111: =IFERROR(YEAR(Calculator!C139),"") ->  | B111: =IFERROR(VLOOKUP(MONTH(Calculator!C139),'Month mapping'!A:B,2,0),"") ->  | C111: =Calculator!D139 ->  | D111: =Calculator!E139 ->  | E111: =Calculator!G139 ->  | F111: =Calculator!H139 ->  | G111: =Calculator!I139 ->  | H111: =Calculator!J139 -> 
A112: =IFERROR(YEAR(Calculator!C140),"") ->  | B112: =IFERROR(VLOOKUP(MONTH(Calculator!C140),'Month mapping'!A:B,2,0),"") ->  | C112: =Calculator!D140 ->  | D112: =Calculator!E140 ->  | E112: =Calculator!G140 ->  | F112: =Calculator!H140 ->  | G112: =Calculator!I140 ->  | H112: =Calculator!J140 -> 
A113: =IFERROR(YEAR(Calculator!C141),"") ->  | B113: =IFERROR(VLOOKUP(MONTH(Calculator!C141),'Month mapping'!A:B,2,0),"") ->  | C113: =Calculator!D141 ->  | D113: =Calculator!E141 ->  | E113: =Calculator!G141 ->  | F113: =Calculator!H141 ->  | G113: =Calculator!I141 ->  | H113: =Calculator!J141 -> 
A114: =IFERROR(YEAR(Calculator!C142),"") ->  | B114: =IFERROR(VLOOKUP(MONTH(Calculator!C142),'Month mapping'!A:B,2,0),"") ->  | C114: =Calculator!D142 ->  | D114: =Calculator!E142 ->  | E114: =Calculator!G142 ->  | F114: =Calculator!H142 ->  | G114: =Calculator!I142 ->  | H114: =Calculator!J142 -> 
A115: =IFERROR(YEAR(Calculator!C143),"") ->  | B115: =IFERROR(VLOOKUP(MONTH(Calculator!C143),'Month mapping'!A:B,2,0),"") ->  | C115: =Calculator!D143 ->  | D115: =Calculator!E143 ->  | E115: =Calculator!G143 ->  | F115: =Calculator!H143 ->  | G115: =Calculator!I143 ->  | H115: =Calculator!J143 -> 
A116: =IFERROR(YEAR(Calculator!C144),"") ->  | B116: =IFERROR(VLOOKUP(MONTH(Calculator!C144),'Month mapping'!A:B,2,0),"") ->  | C116: =Calculator!D144 ->  | D116: =Calculator!E144 ->  | E116: =Calculator!G144 ->  | F116: =Calculator!H144 ->  | G116: =Calculator!I144 ->  | H116: =Calculator!J144 -> 
A117: =IFERROR(YEAR(Calculator!C145),"") ->  | B117: =IFERROR(VLOOKUP(MONTH(Calculator!C145),'Month mapping'!A:B,2,0),"") ->  | C117: =Calculator!D145 ->  | D117: =Calculator!E145 ->  | E117: =Calculator!G145 ->  | F117: =Calculator!H145 ->  | G117: =Calculator!I145 ->  | H117: =Calculator!J145 -> 
A118: =IFERROR(YEAR(Calculator!C146),"") ->  | B118: =IFERROR(VLOOKUP(MONTH(Calculator!C146),'Month mapping'!A:B,2,0),"") ->  | C118: =Calculator!D146 ->  | D118: =Calculator!E146 ->  | E118: =Calculator!G146 ->  | F118: =Calculator!H146 ->  | G118: =Calculator!I146 ->  | H118: =Calculator!J146 -> 
A119: =IFERROR(YEAR(Calculator!C147),"") ->  | B119: =IFERROR(VLOOKUP(MONTH(Calculator!C147),'Month mapping'!A:B,2,0),"") ->  | C119: =Calculator!D147 ->  | D119: =Calculator!E147 ->  | E119: =Calculator!G147 ->  | F119: =Calculator!H147 ->  | G119: =Calculator!I147 ->  | H119: =Calculator!J147 -> 
A120: =IFERROR(YEAR(Calculator!C148),"") ->  | B120: =IFERROR(VLOOKUP(MONTH(Calculator!C148),'Month mapping'!A:B,2,0),"") ->  | C120: =Calculator!D148 ->  | D120: =Calculator!E148 ->  | E120: =Calculator!G148 ->  | F120: =Calculator!H148 ->  | G120: =Calculator!I148 ->  | H120: =Calculator!J148 -> 
A121: =IFERROR(YEAR(Calculator!C149),"") ->  | B121: =IFERROR(VLOOKUP(MONTH(Calculator!C149),'Month mapping'!A:B,2,0),"") ->  | C121: =Calculator!D149 ->  | D121: =Calculator!E149 ->  | E121: =Calculator!G149 ->  | F121: =Calculator!H149 ->  | G121: =Calculator!I149 ->  | H121: =Calculator!J149 -> 
A122: =IFERROR(YEAR(Calculator!C150),"") ->  | B122: =IFERROR(VLOOKUP(MONTH(Calculator!C150),'Month mapping'!A:B,2,0),"") ->  | C122: =Calculator!D150 ->  | D122: =Calculator!E150 ->  | E122: =Calculator!G150 ->  | F122: =Calculator!H150 ->  | G122: =Calculator!I150 ->  | H122: =Calculator!J150 -> 
A123: =IFERROR(YEAR(Calculator!C151),"") ->  | B123: =IFERROR(VLOOKUP(MONTH(Calculator!C151),'Month mapping'!A:B,2,0),"") ->  | C123: =Calculator!D151 ->  | D123: =Calculator!E151 ->  | E123: =Calculator!G151 ->  | F123: =Calculator!H151 ->  | G123: =Calculator!I151 ->  | H123: =Calculator!J151 -> 
A124: =IFERROR(YEAR(Calculator!C152),"") ->  | B124: =IFERROR(VLOOKUP(MONTH(Calculator!C152),'Month mapping'!A:B,2,0),"") ->  | C124: =Calculator!D152 ->  | D124: =Calculator!E152 ->  | E124: =Calculator!G152 ->  | F124: =Calculator!H152 ->  | G124: =Calculator!I152 ->  | H124: =Calculator!J152 -> 
A125: =IFERROR(YEAR(Calculator!C153),"") ->  | B125: =IFERROR(VLOOKUP(MONTH(Calculator!C153),'Month mapping'!A:B,2,0),"") ->  | C125: =Calculator!D153 ->  | D125: =Calculator!E153 ->  | E125: =Calculator!G153 ->  | F125: =Calculator!H153 ->  | G125: =Calculator!I153 ->  | H125: =Calculator!J153 -> 
A126: =IFERROR(YEAR(Calculator!C154),"") ->  | B126: =IFERROR(VLOOKUP(MONTH(Calculator!C154),'Month mapping'!A:B,2,0),"") ->  | C126: =Calculator!D154 ->  | D126: =Calculator!E154 ->  | E126: =Calculator!G154 ->  | F126: =Calculator!H154 ->  | G126: =Calculator!I154 ->  | H126: =Calculator!J154 -> 
A127: =IFERROR(YEAR(Calculator!C155),"") ->  | B127: =IFERROR(VLOOKUP(MONTH(Calculator!C155),'Month mapping'!A:B,2,0),"") ->  | C127: =Calculator!D155 ->  | D127: =Calculator!E155 ->  | E127: =Calculator!G155 ->  | F127: =Calculator!H155 ->  | G127: =Calculator!I155 ->  | H127: =Calculator!J155 -> 
A128: =IFERROR(YEAR(Calculator!C156),"") ->  | B128: =IFERROR(VLOOKUP(MONTH(Calculator!C156),'Month mapping'!A:B,2,0),"") ->  | C128: =Calculator!D156 ->  | D128: =Calculator!E156 ->  | E128: =Calculator!G156 ->  | F128: =Calculator!H156 ->  | G128: =Calculator!I156 ->  | H128: =Calculator!J156 -> 
A129: =IFERROR(YEAR(Calculator!C157),"") ->  | B129: =IFERROR(VLOOKUP(MONTH(Calculator!C157),'Month mapping'!A:B,2,0),"") ->  | C129: =Calculator!D157 ->  | D129: =Calculator!E157 ->  | E129: =Calculator!G157 ->  | F129: =Calculator!H157 ->  | G129: =Calculator!I157 ->  | H129: =Calculator!J157 -> 
A130: =IFERROR(YEAR(Calculator!C158),"") ->  | B130: =IFERROR(VLOOKUP(MONTH(Calculator!C158),'Month mapping'!A:B,2,0),"") ->  | C130: =Calculator!D158 ->  | D130: =Calculator!E158 ->  | E130: =Calculator!G158 ->  | F130: =Calculator!H158 ->  | G130: =Calculator!I158 ->  | H130: =Calculator!J158 -> 
A131: =IFERROR(YEAR(Calculator!C159),"") ->  | B131: =IFERROR(VLOOKUP(MONTH(Calculator!C159),'Month mapping'!A:B,2,0),"") ->  | C131: =Calculator!D159 ->  | D131: =Calculator!E159 ->  | E131: =Calculator!G159 ->  | F131: =Calculator!H159 ->  | G131: =Calculator!I159 ->  | H131: =Calculator!J159 -> 
A132: =IFERROR(YEAR(Calculator!C160),"") ->  | B132: =IFERROR(VLOOKUP(MONTH(Calculator!C160),'Month mapping'!A:B,2,0),"") ->  | C132: =Calculator!D160 ->  | D132: =Calculator!E160 ->  | E132: =Calculator!G160 ->  | F132: =Calculator!H160 ->  | G132: =Calculator!I160 ->  | H132: =Calculator!J160 -> 
A133: =IFERROR(YEAR(Calculator!C161),"") ->  | B133: =IFERROR(VLOOKUP(MONTH(Calculator!C161),'Month mapping'!A:B,2,0),"") ->  | C133: =Calculator!D161 ->  | D133: =Calculator!E161 ->  | E133: =Calculator!G161 ->  | F133: =Calculator!H161 ->  | G133: =Calculator!I161 ->  | H133: =Calculator!J161 -> 
A134: =IFERROR(YEAR(Calculator!C162),"") ->  | B134: =IFERROR(VLOOKUP(MONTH(Calculator!C162),'Month mapping'!A:B,2,0),"") ->  | C134: =Calculator!D162 ->  | D134: =Calculator!E162 ->  | E134: =Calculator!G162 ->  | F134: =Calculator!H162 ->  | G134: =Calculator!I162 ->  | H134: =Calculator!J162 -> 
A135: =IFERROR(YEAR(Calculator!C163),"") ->  | B135: =IFERROR(VLOOKUP(MONTH(Calculator!C163),'Month mapping'!A:B,2,0),"") ->  | C135: =Calculator!D163 ->  | D135: =Calculator!E163 ->  | E135: =Calculator!G163 ->  | F135: =Calculator!H163 ->  | G135: =Calculator!I163 ->  | H135: =Calculator!J163 -> 
A136: =IFERROR(YEAR(Calculator!C164),"") ->  | B136: =IFERROR(VLOOKUP(MONTH(Calculator!C164),'Month mapping'!A:B,2,0),"") ->  | C136: =Calculator!D164 ->  | D136: =Calculator!E164 ->  | E136: =Calculator!G164 ->  | F136: =Calculator!H164 ->  | G136: =Calculator!I164 ->  | H136: =Calculator!J164 -> 
A137: =IFERROR(YEAR(Calculator!C165),"") ->  | B137: =IFERROR(VLOOKUP(MONTH(Calculator!C165),'Month mapping'!A:B,2,0),"") ->  | C137: =Calculator!D165 ->  | D137: =Calculator!E165 ->  | E137: =Calculator!G165 ->  | F137: =Calculator!H165 ->  | G137: =Calculator!I165 ->  | H137: =Calculator!J165 -> 
A138: =IFERROR(YEAR(Calculator!C166),"") ->  | B138: =IFERROR(VLOOKUP(MONTH(Calculator!C166),'Month mapping'!A:B,2,0),"") ->  | C138: =Calculator!D166 ->  | D138: =Calculator!E166 ->  | E138: =Calculator!G166 ->  | F138: =Calculator!H166 ->  | G138: =Calculator!I166 ->  | H138: =Calculator!J166 -> 
A139: =IFERROR(YEAR(Calculator!C167),"") ->  | B139: =IFERROR(VLOOKUP(MONTH(Calculator!C167),'Month mapping'!A:B,2,0),"") ->  | C139: =Calculator!D167 ->  | D139: =Calculator!E167 ->  | E139: =Calculator!G167 ->  | F139: =Calculator!H167 ->  | G139: =Calculator!I167 ->  | H139: =Calculator!J167 -> 
A140: =IFERROR(YEAR(Calculator!C168),"") ->  | B140: =IFERROR(VLOOKUP(MONTH(Calculator!C168),'Month mapping'!A:B,2,0),"") ->  | C140: =Calculator!D168 ->  | D140: =Calculator!E168 ->  | E140: =Calculator!G168 ->  | F140: =Calculator!H168 ->  | G140: =Calculator!I168 ->  | H140: =Calculator!J168 -> 
A141: =IFERROR(YEAR(Calculator!C169),"") ->  | B141: =IFERROR(VLOOKUP(MONTH(Calculator!C169),'Month mapping'!A:B,2,0),"") ->  | C141: =Calculator!D169 ->  | D141: =Calculator!E169 ->  | E141: =Calculator!G169 ->  | F141: =Calculator!H169 ->  | G141: =Calculator!I169 ->  | H141: =Calculator!J169 -> 
A142: =IFERROR(YEAR(Calculator!C170),"") ->  | B142: =IFERROR(VLOOKUP(MONTH(Calculator!C170),'Month mapping'!A:B,2,0),"") ->  | C142: =Calculator!D170 ->  | D142: =Calculator!E170 ->  | E142: =Calculator!G170 ->  | F142: =Calculator!H170 ->  | G142: =Calculator!I170 ->  | H142: =Calculator!J170 -> 
A143: =IFERROR(YEAR(Calculator!C171),"") ->  | B143: =IFERROR(VLOOKUP(MONTH(Calculator!C171),'Month mapping'!A:B,2,0),"") ->  | C143: =Calculator!D171 ->  | D143: =Calculator!E171 ->  | E143: =Calculator!G171 ->  | F143: =Calculator!H171 ->  | G143: =Calculator!I171 ->  | H143: =Calculator!J171 -> 
A144: =IFERROR(YEAR(Calculator!C172),"") ->  | B144: =IFERROR(VLOOKUP(MONTH(Calculator!C172),'Month mapping'!A:B,2,0),"") ->  | C144: =Calculator!D172 ->  | D144: =Calculator!E172 ->  | E144: =Calculator!G172 ->  | F144: =Calculator!H172 ->  | G144: =Calculator!I172 ->  | H144: =Calculator!J172 -> 
A145: =IFERROR(YEAR(Calculator!C173),"") ->  | B145: =IFERROR(VLOOKUP(MONTH(Calculator!C173),'Month mapping'!A:B,2,0),"") ->  | C145: =Calculator!D173 ->  | D145: =Calculator!E173 ->  | E145: =Calculator!G173 ->  | F145: =Calculator!H173 ->  | G145: =Calculator!I173 ->  | H145: =Calculator!J173 -> 
A146: =IFERROR(YEAR(Calculator!C174),"") ->  | B146: =IFERROR(VLOOKUP(MONTH(Calculator!C174),'Month mapping'!A:B,2,0),"") ->  | C146: =Calculator!D174 ->  | D146: =Calculator!E174 ->  | E146: =Calculator!G174 ->  | F146: =Calculator!H174 ->  | G146: =Calculator!I174 ->  | H146: =Calculator!J174 -> 
A147: =IFERROR(YEAR(Calculator!C175),"") ->  | B147: =IFERROR(VLOOKUP(MONTH(Calculator!C175),'Month mapping'!A:B,2,0),"") ->  | C147: =Calculator!D175 ->  | D147: =Calculator!E175 ->  | E147: =Calculator!G175 ->  | F147: =Calculator!H175 ->  | G147: =Calculator!I175 ->  | H147: =Calculator!J175 -> 
A148: =IFERROR(YEAR(Calculator!C176),"") ->  | B148: =IFERROR(VLOOKUP(MONTH(Calculator!C176),'Month mapping'!A:B,2,0),"") ->  | C148: =Calculator!D176 ->  | D148: =Calculator!E176 ->  | E148: =Calculator!G176 ->  | F148: =Calculator!H176 ->  | G148: =Calculator!I176 ->  | H148: =Calculator!J176 -> 
A149: =IFERROR(YEAR(Calculator!C177),"") ->  | B149: =IFERROR(VLOOKUP(MONTH(Calculator!C177),'Month mapping'!A:B,2,0),"") ->  | C149: =Calculator!D177 ->  | D149: =Calculator!E177 ->  | E149: =Calculator!G177 ->  | F149: =Calculator!H177 ->  | G149: =Calculator!I177 ->  | H149: =Calculator!J177 -> 
A150: =IFERROR(YEAR(Calculator!C178),"") ->  | B150: =IFERROR(VLOOKUP(MONTH(Calculator!C178),'Month mapping'!A:B,2,0),"") ->  | C150: =Calculator!D178 ->  | D150: =Calculator!E178 ->  | E150: =Calculator!G178 ->  | F150: =Calculator!H178 ->  | G150: =Calculator!I178 ->  | H150: =Calculator!J178 -> 
A151: =IFERROR(YEAR(Calculator!C179),"") ->  | B151: =IFERROR(VLOOKUP(MONTH(Calculator!C179),'Month mapping'!A:B,2,0),"") ->  | C151: =Calculator!D179 ->  | D151: =Calculator!E179 ->  | E151: =Calculator!G179 ->  | F151: =Calculator!H179 ->  | G151: =Calculator!I179 ->  | H151: =Calculator!J179 -> 
A152: =IFERROR(YEAR(Calculator!C180),"") ->  | B152: =IFERROR(VLOOKUP(MONTH(Calculator!C180),'Month mapping'!A:B,2,0),"") ->  | C152: =Calculator!D180 ->  | D152: =Calculator!E180 ->  | E152: =Calculator!G180 ->  | F152: =Calculator!H180 ->  | G152: =Calculator!I180 ->  | H152: =Calculator!J180 -> 
A153: =IFERROR(YEAR(Calculator!C181),"") ->  | B153: =IFERROR(VLOOKUP(MONTH(Calculator!C181),'Month mapping'!A:B,2,0),"") ->  | C153: =Calculator!D181 ->  | D153: =Calculator!E181 ->  | E153: =Calculator!G181 ->  | F153: =Calculator!H181 ->  | G153: =Calculator!I181 ->  | H153: =Calculator!J181 -> 
A154: =IFERROR(YEAR(Calculator!C182),"") ->  | B154: =IFERROR(VLOOKUP(MONTH(Calculator!C182),'Month mapping'!A:B,2,0),"") ->  | C154: =Calculator!D182 ->  | D154: =Calculator!E182 ->  | E154: =Calculator!G182 ->  | F154: =Calculator!H182 ->  | G154: =Calculator!I182 ->  | H154: =Calculator!J182 -> 
A155: =IFERROR(YEAR(Calculator!C183),"") ->  | B155: =IFERROR(VLOOKUP(MONTH(Calculator!C183),'Month mapping'!A:B,2,0),"") ->  | C155: =Calculator!D183 ->  | D155: =Calculator!E183 ->  | E155: =Calculator!G183 ->  | F155: =Calculator!H183 ->  | G155: =Calculator!I183 ->  | H155: =Calculator!J183 -> 
A156: =IFERROR(YEAR(Calculator!C184),"") ->  | B156: =IFERROR(VLOOKUP(MONTH(Calculator!C184),'Month mapping'!A:B,2,0),"") ->  | C156: =Calculator!D184 ->  | D156: =Calculator!E184 ->  | E156: =Calculator!G184 ->  | F156: =Calculator!H184 ->  | G156: =Calculator!I184 ->  | H156: =Calculator!J184 -> 
A157: =IFERROR(YEAR(Calculator!C185),"") ->  | B157: =IFERROR(VLOOKUP(MONTH(Calculator!C185),'Month mapping'!A:B,2,0),"") ->  | C157: =Calculator!D185 ->  | D157: =Calculator!E185 ->  | E157: =Calculator!G185 ->  | F157: =Calculator!H185 ->  | G157: =Calculator!I185 ->  | H157: =Calculator!J185 -> 
A158: =IFERROR(YEAR(Calculator!C186),"") ->  | B158: =IFERROR(VLOOKUP(MONTH(Calculator!C186),'Month mapping'!A:B,2,0),"") ->  | C158: =Calculator!D186 ->  | D158: =Calculator!E186 ->  | E158: =Calculator!G186 ->  | F158: =Calculator!H186 ->  | G158: =Calculator!I186 ->  | H158: =Calculator!J186 -> 
A159: =IFERROR(YEAR(Calculator!C187),"") ->  | B159: =IFERROR(VLOOKUP(MONTH(Calculator!C187),'Month mapping'!A:B,2,0),"") ->  | C159: =Calculator!D187 ->  | D159: =Calculator!E187 ->  | E159: =Calculator!G187 ->  | F159: =Calculator!H187 ->  | G159: =Calculator!I187 ->  | H159: =Calculator!J187 -> 
A160: =IFERROR(YEAR(Calculator!C188),"") ->  | B160: =IFERROR(VLOOKUP(MONTH(Calculator!C188),'Month mapping'!A:B,2,0),"") ->  | C160: =Calculator!D188 ->  | D160: =Calculator!E188 ->  | E160: =Calculator!G188 ->  | F160: =Calculator!H188 ->  | G160: =Calculator!I188 ->  | H160: =Calculator!J188 -> 
A161: =IFERROR(YEAR(Calculator!C189),"") ->  | B161: =IFERROR(VLOOKUP(MONTH(Calculator!C189),'Month mapping'!A:B,2,0),"") ->  | C161: =Calculator!D189 ->  | D161: =Calculator!E189 ->  | E161: =Calculator!G189 ->  | F161: =Calculator!H189 ->  | G161: =Calculator!I189 ->  | H161: =Calculator!J189 -> 
A162: =IFERROR(YEAR(Calculator!C190),"") ->  | B162: =IFERROR(VLOOKUP(MONTH(Calculator!C190),'Month mapping'!A:B,2,0),"") ->  | C162: =Calculator!D190 ->  | D162: =Calculator!E190 ->  | E162: =Calculator!G190 ->  | F162: =Calculator!H190 ->  | G162: =Calculator!I190 ->  | H162: =Calculator!J190 -> 
A163: =IFERROR(YEAR(Calculator!C191),"") ->  | B163: =IFERROR(VLOOKUP(MONTH(Calculator!C191),'Month mapping'!A:B,2,0),"") ->  | C163: =Calculator!D191 ->  | D163: =Calculator!E191 ->  | E163: =Calculator!G191 ->  | F163: =Calculator!H191 ->  | G163: =Calculator!I191 ->  | H163: =Calculator!J191 -> 
A164: =IFERROR(YEAR(Calculator!C192),"") ->  | B164: =IFERROR(VLOOKUP(MONTH(Calculator!C192),'Month mapping'!A:B,2,0),"") ->  | C164: =Calculator!D192 ->  | D164: =Calculator!E192 ->  | E164: =Calculator!G192 ->  | F164: =Calculator!H192 ->  | G164: =Calculator!I192 ->  | H164: =Calculator!J192 -> 
A165: =IFERROR(YEAR(Calculator!C193),"") ->  | B165: =IFERROR(VLOOKUP(MONTH(Calculator!C193),'Month mapping'!A:B,2,0),"") ->  | C165: =Calculator!D193 ->  | D165: =Calculator!E193 ->  | E165: =Calculator!G193 ->  | F165: =Calculator!H193 ->  | G165: =Calculator!I193 ->  | H165: =Calculator!J193 -> 
A166: =IFERROR(YEAR(Calculator!C194),"") ->  | B166: =IFERROR(VLOOKUP(MONTH(Calculator!C194),'Month mapping'!A:B,2,0),"") ->  | C166: =Calculator!D194 ->  | D166: =Calculator!E194 ->  | E166: =Calculator!G194 ->  | F166: =Calculator!H194 ->  | G166: =Calculator!I194 ->  | H166: =Calculator!J194 -> 
A167: =IFERROR(YEAR(Calculator!C195),"") ->  | B167: =IFERROR(VLOOKUP(MONTH(Calculator!C195),'Month mapping'!A:B,2,0),"") ->  | C167: =Calculator!D195 ->  | D167: =Calculator!E195 ->  | E167: =Calculator!G195 ->  | F167: =Calculator!H195 ->  | G167: =Calculator!I195 ->  | H167: =Calculator!J195 -> 
A168: =IFERROR(YEAR(Calculator!C196),"") ->  | B168: =IFERROR(VLOOKUP(MONTH(Calculator!C196),'Month mapping'!A:B,2,0),"") ->  | C168: =Calculator!D196 ->  | D168: =Calculator!E196 ->  | E168: =Calculator!G196 ->  | F168: =Calculator!H196 ->  | G168: =Calculator!I196 ->  | H168: =Calculator!J196 -> 
A169: =IFERROR(YEAR(Calculator!C197),"") ->  | B169: =IFERROR(VLOOKUP(MONTH(Calculator!C197),'Month mapping'!A:B,2,0),"") ->  | C169: =Calculator!D197 ->  | D169: =Calculator!E197 ->  | E169: =Calculator!G197 ->  | F169: =Calculator!H197 ->  | G169: =Calculator!I197 ->  | H169: =Calculator!J197 -> 
A170: =IFERROR(YEAR(Calculator!C198),"") ->  | B170: =IFERROR(VLOOKUP(MONTH(Calculator!C198),'Month mapping'!A:B,2,0),"") ->  | C170: =Calculator!D198 ->  | D170: =Calculator!E198 ->  | E170: =Calculator!G198 ->  | F170: =Calculator!H198 ->  | G170: =Calculator!I198 ->  | H170: =Calculator!J198 -> 
A171: =IFERROR(YEAR(Calculator!C199),"") ->  | B171: =IFERROR(VLOOKUP(MONTH(Calculator!C199),'Month mapping'!A:B,2,0),"") ->  | C171: =Calculator!D199 ->  | D171: =Calculator!E199 ->  | E171: =Calculator!G199 ->  | F171: =Calculator!H199 ->  | G171: =Calculator!I199 ->  | H171: =Calculator!J199 -> 
A172: =IFERROR(YEAR(Calculator!C200),"") ->  | B172: =IFERROR(VLOOKUP(MONTH(Calculator!C200),'Month mapping'!A:B,2,0),"") ->  | C172: =Calculator!D200 ->  | D172: =Calculator!E200 ->  | E172: =Calculator!G200 ->  | F172: =Calculator!H200 ->  | G172: =Calculator!I200 ->  | H172: =Calculator!J200 -> 
A173: =IFERROR(YEAR(Calculator!C201),"") ->  | B173: =IFERROR(VLOOKUP(MONTH(Calculator!C201),'Month mapping'!A:B,2,0),"") ->  | C173: =Calculator!D201 ->  | D173: =Calculator!E201 ->  | E173: =Calculator!G201 ->  | F173: =Calculator!H201 ->  | G173: =Calculator!I201 ->  | H173: =Calculator!J201 -> 
A174: =IFERROR(YEAR(Calculator!C202),"") ->  | B174: =IFERROR(VLOOKUP(MONTH(Calculator!C202),'Month mapping'!A:B,2,0),"") ->  | C174: =Calculator!D202 ->  | D174: =Calculator!E202 ->  | E174: =Calculator!G202 ->  | F174: =Calculator!H202 ->  | G174: =Calculator!I202 ->  | H174: =Calculator!J202 -> 
A175: =IFERROR(YEAR(Calculator!C203),"") ->  | B175: =IFERROR(VLOOKUP(MONTH(Calculator!C203),'Month mapping'!A:B,2,0),"") ->  | C175: =Calculator!D203 ->  | D175: =Calculator!E203 ->  | E175: =Calculator!G203 ->  | F175: =Calculator!H203 ->  | G175: =Calculator!I203 ->  | H175: =Calculator!J203 -> 
A176: =IFERROR(YEAR(Calculator!C204),"") ->  | B176: =IFERROR(VLOOKUP(MONTH(Calculator!C204),'Month mapping'!A:B,2,0),"") ->  | C176: =Calculator!D204 ->  | D176: =Calculator!E204 ->  | E176: =Calculator!G204 ->  | F176: =Calculator!H204 ->  | G176: =Calculator!I204 ->  | H176: =Calculator!J204 -> 
A177: =IFERROR(YEAR(Calculator!C205),"") ->  | B177: =IFERROR(VLOOKUP(MONTH(Calculator!C205),'Month mapping'!A:B,2,0),"") ->  | C177: =Calculator!D205 ->  | D177: =Calculator!E205 ->  | E177: =Calculator!G205 ->  | F177: =Calculator!H205 ->  | G177: =Calculator!I205 ->  | H177: =Calculator!J205 -> 
A178: =IFERROR(YEAR(Calculator!C206),"") ->  | B178: =IFERROR(VLOOKUP(MONTH(Calculator!C206),'Month mapping'!A:B,2,0),"") ->  | C178: =Calculator!D206 ->  | D178: =Calculator!E206 ->  | E178: =Calculator!G206 ->  | F178: =Calculator!H206 ->  | G178: =Calculator!I206 ->  | H178: =Calculator!J206 -> 
A179: =IFERROR(YEAR(Calculator!C207),"") ->  | B179: =IFERROR(VLOOKUP(MONTH(Calculator!C207),'Month mapping'!A:B,2,0),"") ->  | C179: =Calculator!D207 ->  | D179: =Calculator!E207 ->  | E179: =Calculator!G207 ->  | F179: =Calculator!H207 ->  | G179: =Calculator!I207 ->  | H179: =Calculator!J207 -> 
A180: =IFERROR(YEAR(Calculator!C208),"") ->  | B180: =IFERROR(VLOOKUP(MONTH(Calculator!C208),'Month mapping'!A:B,2,0),"") ->  | C180: =Calculator!D208 ->  | D180: =Calculator!E208 ->  | E180: =Calculator!G208 ->  | F180: =Calculator!H208 ->  | G180: =Calculator!I208 ->  | H180: =Calculator!J208 -> 
A181: =IFERROR(YEAR(Calculator!C209),"") ->  | B181: =IFERROR(VLOOKUP(MONTH(Calculator!C209),'Month mapping'!A:B,2,0),"") ->  | C181: =Calculator!D209 ->  | D181: =Calculator!E209 ->  | E181: =Calculator!G209 ->  | F181: =Calculator!H209 ->  | G181: =Calculator!I209 ->  | H181: =Calculator!J209 -> 
A182: =IFERROR(YEAR(Calculator!C210),"") ->  | B182: =IFERROR(VLOOKUP(MONTH(Calculator!C210),'Month mapping'!A:B,2,0),"") ->  | C182: =Calculator!D210 ->  | D182: =Calculator!E210 ->  | E182: =Calculator!G210 ->  | F182: =Calculator!H210 ->  | G182: =Calculator!I210 ->  | H182: =Calculator!J210 -> 
A183: =IFERROR(YEAR(Calculator!C211),"") ->  | B183: =IFERROR(VLOOKUP(MONTH(Calculator!C211),'Month mapping'!A:B,2,0),"") ->  | C183: =Calculator!D211 ->  | D183: =Calculator!E211 ->  | E183: =Calculator!G211 ->  | F183: =Calculator!H211 ->  | G183: =Calculator!I211 ->  | H183: =Calculator!J211 -> 
A184: =IFERROR(YEAR(Calculator!C212),"") ->  | B184: =IFERROR(VLOOKUP(MONTH(Calculator!C212),'Month mapping'!A:B,2,0),"") ->  | C184: =Calculator!D212 ->  | D184: =Calculator!E212 ->  | E184: =Calculator!G212 ->  | F184: =Calculator!H212 ->  | G184: =Calculator!I212 ->  | H184: =Calculator!J212 -> 
A185: =IFERROR(YEAR(Calculator!C213),"") ->  | B185: =IFERROR(VLOOKUP(MONTH(Calculator!C213),'Month mapping'!A:B,2,0),"") ->  | C185: =Calculator!D213 ->  | D185: =Calculator!E213 ->  | E185: =Calculator!G213 ->  | F185: =Calculator!H213 ->  | G185: =Calculator!I213 ->  | H185: =Calculator!J213 -> 
A186: =IFERROR(YEAR(Calculator!C214),"") ->  | B186: =IFERROR(VLOOKUP(MONTH(Calculator!C214),'Month mapping'!A:B,2,0),"") ->  | C186: =Calculator!D214 ->  | D186: =Calculator!E214 ->  | E186: =Calculator!G214 ->  | F186: =Calculator!H214 ->  | G186: =Calculator!I214 ->  | H186: =Calculator!J214 -> 
A187: =IFERROR(YEAR(Calculator!C215),"") ->  | B187: =IFERROR(VLOOKUP(MONTH(Calculator!C215),'Month mapping'!A:B,2,0),"") ->  | C187: =Calculator!D215 ->  | D187: =Calculator!E215 ->  | E187: =Calculator!G215 ->  | F187: =Calculator!H215 ->  | G187: =Calculator!I215 ->  | H187: =Calculator!J215 -> 
A188: =IFERROR(YEAR(Calculator!C216),"") ->  | B188: =IFERROR(VLOOKUP(MONTH(Calculator!C216),'Month mapping'!A:B,2,0),"") ->  | C188: =Calculator!D216 ->  | D188: =Calculator!E216 ->  | E188: =Calculator!G216 ->  | F188: =Calculator!H216 ->  | G188: =Calculator!I216 ->  | H188: =Calculator!J216 -> 
A189: =IFERROR(YEAR(Calculator!C217),"") ->  | B189: =IFERROR(VLOOKUP(MONTH(Calculator!C217),'Month mapping'!A:B,2,0),"") ->  | C189: =Calculator!D217 ->  | D189: =Calculator!E217 ->  | E189: =Calculator!G217 ->  | F189: =Calculator!H217 ->  | G189: =Calculator!I217 ->  | H189: =Calculator!J217 -> 
A190: =IFERROR(YEAR(Calculator!C218),"") ->  | B190: =IFERROR(VLOOKUP(MONTH(Calculator!C218),'Month mapping'!A:B,2,0),"") ->  | C190: =Calculator!D218 ->  | D190: =Calculator!E218 ->  | E190: =Calculator!G218 ->  | F190: =Calculator!H218 ->  | G190: =Calculator!I218 ->  | H190: =Calculator!J218 -> 
A191: =IFERROR(YEAR(Calculator!C219),"") ->  | B191: =IFERROR(VLOOKUP(MONTH(Calculator!C219),'Month mapping'!A:B,2,0),"") ->  | C191: =Calculator!D219 ->  | D191: =Calculator!E219 ->  | E191: =Calculator!G219 ->  | F191: =Calculator!H219 ->  | G191: =Calculator!I219 ->  | H191: =Calculator!J219 -> 
A192: =IFERROR(YEAR(Calculator!C220),"") ->  | B192: =IFERROR(VLOOKUP(MONTH(Calculator!C220),'Month mapping'!A:B,2,0),"") ->  | C192: =Calculator!D220 ->  | D192: =Calculator!E220 ->  | E192: =Calculator!G220 ->  | F192: =Calculator!H220 ->  | G192: =Calculator!I220 ->  | H192: =Calculator!J220 -> 
A193: =IFERROR(YEAR(Calculator!C221),"") ->  | B193: =IFERROR(VLOOKUP(MONTH(Calculator!C221),'Month mapping'!A:B,2,0),"") ->  | C193: =Calculator!D221 ->  | D193: =Calculator!E221 ->  | E193: =Calculator!G221 ->  | F193: =Calculator!H221 ->  | G193: =Calculator!I221 ->  | H193: =Calculator!J221 -> 
A194: =IFERROR(YEAR(Calculator!C222),"") ->  | B194: =IFERROR(VLOOKUP(MONTH(Calculator!C222),'Month mapping'!A:B,2,0),"") ->  | C194: =Calculator!D222 ->  | D194: =Calculator!E222 ->  | E194: =Calculator!G222 ->  | F194: =Calculator!H222 ->  | G194: =Calculator!I222 ->  | H194: =Calculator!J222 -> 
A195: =IFERROR(YEAR(Calculator!C223),"") ->  | B195: =IFERROR(VLOOKUP(MONTH(Calculator!C223),'Month mapping'!A:B,2,0),"") ->  | C195: =Calculator!D223 ->  | D195: =Calculator!E223 ->  | E195: =Calculator!G223 ->  | F195: =Calculator!H223 ->  | G195: =Calculator!I223 ->  | H195: =Calculator!J223 -> 
A196: =IFERROR(YEAR(Calculator!C224),"") ->  | B196: =IFERROR(VLOOKUP(MONTH(Calculator!C224),'Month mapping'!A:B,2,0),"") ->  | C196: =Calculator!D224 ->  | D196: =Calculator!E224 ->  | E196: =Calculator!G224 ->  | F196: =Calculator!H224 ->  | G196: =Calculator!I224 ->  | H196: =Calculator!J224 -> 
A197: =IFERROR(YEAR(Calculator!C225),"") ->  | B197: =IFERROR(VLOOKUP(MONTH(Calculator!C225),'Month mapping'!A:B,2,0),"") ->  | C197: =Calculator!D225 ->  | D197: =Calculator!E225 ->  | E197: =Calculator!G225 ->  | F197: =Calculator!H225 ->  | G197: =Calculator!I225 ->  | H197: =Calculator!J225 -> 
A198: =IFERROR(YEAR(Calculator!C226),"") ->  | B198: =IFERROR(VLOOKUP(MONTH(Calculator!C226),'Month mapping'!A:B,2,0),"") ->  | C198: =Calculator!D226 ->  | D198: =Calculator!E226 ->  | E198: =Calculator!G226 ->  | F198: =Calculator!H226 ->  | G198: =Calculator!I226 ->  | H198: =Calculator!J226 -> 
A199: =IFERROR(YEAR(Calculator!C227),"") ->  | B199: =IFERROR(VLOOKUP(MONTH(Calculator!C227),'Month mapping'!A:B,2,0),"") ->  | C199: =Calculator!D227 ->  | D199: =Calculator!E227 ->  | E199: =Calculator!G227 ->  | F199: =Calculator!H227 ->  | G199: =Calculator!I227 ->  | H199: =Calculator!J227 -> 
A200: =IFERROR(YEAR(Calculator!C228),"") ->  | B200: =IFERROR(VLOOKUP(MONTH(Calculator!C228),'Month mapping'!A:B,2,0),"") ->  | C200: =Calculator!D228 ->  | D200: =Calculator!E228 ->  | E200: =Calculator!G228 ->  | F200: =Calculator!H228 ->  | G200: =Calculator!I228 ->  | H200: =Calculator!J228 -> 
... 599 more rows

Sheet Calculator
C1: =INDIRECT("'Dictionary'!R"&MATCH("Mortgage calculator",Dictionary!A:A,0)&"C"&LangCol,FALSE) -> Tabla de amortización
B2: =IF(AND(mois<>"",annee<>"",annee>0,pret<>"",pret>0,dureepret<>"",dureepret>0,tauxinteret<>"",tauxinteret>0),"OK","NOK") -> OK | C2: =INDIRECT("'Dictionary'!R"&MATCH("Mortgage data",Dictionary!A:A,0)&"C"&LangCol,FALSE) -> Datos de prestamo
D4: =INDIRECT("'Dictionary'!R"&MATCH("Start date",Dictionary!A:A,0)&"C"&LangCol,FALSE) -> Fecha de inicio | E4: agosto | F4: 2020 | I4: Language: | J4: Espanol | K4: =MATCH(J4,Dictionary!1:1,0) -> 6
E5: =INDEX(Dictionary!A:A,MATCH(Calculator!mois,INDIRECT("Dictionary!R1C"&LangCol&":R100C"&LangCol,FALSE),0)) -> August
D6: =INDIRECT("'Dictionary'!R"&MATCH("Mortgage amount",Dictionary!A:A,0)&"C"&LangCol,FALSE) -> Importe del préstamo | E6: 200000 | F6: =INDIRECT("'Dictionary'!R"&MATCH("£",Dictionary!A:A,0)&"C"&LangCol,FALSE) -> €
D8: =INDIRECT("'Dictionary'!R"&MATCH("Mortgage term",Dictionary!A:A,0)&"C"&LangCol,FALSE) -> Duración | E8: 36 | F8: =INDIRECT("'Dictionary'!R"&MATCH("months",Dictionary!A:A,0)&"C"&LangCol,FALSE) -> mes
D10: =INDIRECT("'Dictionary'!R"&MATCH("Interest rate per year",Dictionary!A:A,0)&"C"&LangCol,FALSE) -> Tasa de interés | E10: 2 | F10: %
D12: =INDIRECT("'Dictionary'!R"&MATCH("Insurance rate",Dictionary!A:A,0)&"C"&LangCol,FALSE) -> Tasa de seguro | E12: 1 | F12: =INDIRECT("'Dictionary'!R"&MATCH("% of borrowed amount",Dictionary!A:A,0)&"C"&LangCol,FALSE) -> % de la cantidad prestada
B14: =IF(AND(OR(typediffere=3,typediffere=2),dureediffere>0,dureediffere<dureepret),"OK",IF(AND(typediffere=1,dureediffere>=0),"OK","NOK")) -> OK | C14: =INDIRECT("'Dictionary'!R"&MATCH("Deferred repayment",Dictionary!A:A,0)&"C"&LangCol,FALSE) -> Pago diferido
E16: =INDIRECT("'Dictionary'!R"&MATCH("Without delay",Dictionary!A:A,0)&"C"&LangCol,FALSE) -> Sin
B17: 1 | D17: =INDIRECT("'Dictionary'!R"&MATCH("Type",Dictionary!A:A,0)&"C"&LangCol,FALSE) -> Tipo diferido | E17: =INDIRECT("'Dictionary'!R"&MATCH("Partial (with interest payment)",Dictionary!A:A,0)&"C"&LangCol,FALSE) -> Parcial (con pago de intereses)
E18: =INDIRECT("'Dictionary'!R"&MATCH("Total (without interest payment)",Dictionary!A:A,0)&"C"&LangCol,FALSE) -> Total (sin pago de intereses)
D20: =INDIRECT("'Dictionary'!R"&MATCH("Duration",Dictionary!A:A,0)&"C"&LangCol,FALSE) -> Duración del diferido | F20: =INDIRECT("'Dictionary'!R"&MATCH("months",Dictionary!A:A,0)&"C"&LangCol,FALSE) -> mes
C22: =INDIRECT("'Dictionary'!R"&MATCH("Mortgage cost",Dictionary!A:A,0)&"C"&LangCol,FALSE) -> Costo total del préstamo
D24: =INDIRECT("'Dictionary'!R"&MATCH("Total Interest",Dictionary!A:A,0)&"C"&LangCol,FALSE) -> Costo de interés | E24: =IF(AND(test="OK",test2="OK"),SUM(G30:G1000),0) -> 6226.566874 | F24: =INDIRECT("'Dictionary'!R"&MATCH("£",Dictionary!A:A,0)&"C"&LangCol,FALSE) -> €
D25: =INDIRECT("'Dictionary'!R"&MATCH("Total insurance",Dictionary!A:A,0)&"C"&LangCol,FALSE) -> Costo del seguro | E25: =IF(AND(test="OK",test2="OK"),pret*tauxassurance*0.01*dureepret/12,0) -> 6000 | F25: =INDIRECT("'Dictionary'!R"&MATCH("£",Dictionary!A:A,0)&"C"&LangCol,FALSE) -> €
D26: =INDIRECT("'Dictionary'!R"&MATCH("Total cost",Dictionary!A:A,0)&"C"&LangCol,FALSE) -> Costo total del préstamo | E26: =IF(AND(test="OK",test2="OK"),E24+E25,0) -> 12226.56687 | F26: =INDIRECT("'Dictionary'!R"&MATCH("£",Dictionary!A:A,0)&"C"&LangCol,FALSE) -> €
C28: =INDIRECT("'Dictionary'!R"&MATCH("Amortization schedule calculator",Dictionary!A:A,0)&"C"&LangCol,FALSE) -> Tabla de amortización
B29: 0 | C29: =INDIRECT("'Dictionary'!R"&MATCH("Date",Dictionary!A:A,0)&"C"&LangCol,FALSE) -> Fecha | D29: =INDIRECT("'Dictionary'!R"&MATCH("No.",Dictionary!A:A,0)&"C"&LangCol,FALSE) -> Cantidad de pagos | E29: =INDIRECT("'Dictionary'!R"&MATCH("Monthly payment with insurance",Dictionary!A:A,0)&"C"&LangCol,FALSE) -> Pago mensual con seguro | F29: =INDIRECT("'Dictionary'!R"&MATCH("Monthly payment without insurance",Dictionary!A:A,0)&"C"&LangCol,FALSE) -> Pago mensual sin seguro | G29: =INDIRECT("'Dictionary'!R"&MATCH("Interest",Dictionary!A:A,0)&"C"&LangCol,FALSE) -> Intereses | H29: =INDIRECT("'Dictionary'!R"&MATCH("Insurance",Dictionary!A:A,0)&"C"&LangCol,FALSE) -> Seguro | I29: =INDIRECT("'Dictionary'!R"&MATCH("Principal",Dictionary!A:A,0)&"C"&LangCol,FALSE) -> Capital pagado | J29: =INDIRECT("'Dictionary'!R"&MATCH("Balance",Dictionary!A:A,0)&"C"&LangCol,FALSE) -> Capital restante | K29: =INDIRECT("'Dictionary'!R"&MATCH("Total Interest ",Dictionary!A:A,0)&"C"&LangCol,FALSE) -> Interés acumulado
B30: =IF(AND(D30<>"",OR(typediffere=2,typediffere=3),B29<dureediffere),"D",D30) -> 1 | C30: =IF(D30<>"",DATE(F4,COUNTIF(monthEnglish,"January")*1+COUNTIF(monthEnglish,"February")*2+COUNTIF(monthEnglish,"March")*3+COUNTIF(monthEnglish,"April")*4+COUNTIF(monthEnglish,"May")*5+COUNTIF(monthEnglish,"June")*6+COUNTIF(monthEnglish,"July")*7+COUNTIF(monthEnglish,"August")*8+COUNTIF(monthEnglish,"September")*9+COUNTIF(monthEnglish,"October")*10+COUNTIF(monthEnglish,"November")*11+COUNTIF(monthEnglish,"December")*12,1),"") -> 2020-08-01 | D30: =IF(AND(test="OK",test2="OK"),1,"") -> 1 | E30: =IF(D30<>"",F30+H30,"") -> 5895.182413 | F30: =IF(AND(D30<>"",B30=D30,typediffere=1),(pret*tauxinteret/100)/(12*(1-POWER(1+((tauxinteret/100)/12),-dureepret))),IF(AND(D30<>"",B30=D30,typediffere=2),(pret*tauxinteret/100)/(12*(1-POWER(1+((tauxinteret/100)/12),-dureepret+dureediffere))),IF(AND(D30<>"",B30="D",typediffere=2),G30,IF(AND(D30<>"",B30="D",typediffere=3),0,IF(AND(D30<>"",B30=D30,B29="D",typediffere=3),(pret*tauxinteret/100)/(12*(1-POWER(1+((tauxinteret/100)/12),-dureepret+dureediffere))),IF(AND(D30<>"",B30=D30,B29<>"D",typediffere=3),0,"")))))) -> 5728.515746 | G30: =IF(D30<>"",pret*tauxinteret/100/12,"") -> 333.3333333 | H30: =IF(D30<>"",pret*tauxassurance/100/12,"") -> 166.6666667 | I30: =IF(AND(D30<>"",B30=D30),F30-G30,IF(AND(D30<>"",B30="D"),0,"")) -> 5395.182413 | J30: =IF(OR(AND(D30<>"",B30=D30),AND(D30<>"",B30="D",typediffere=2)),pret-F30+G30,IF(AND(D30<>"",B30="D",typediffere=3),pret+G30,"")) -> 194604.8176 | K30: =IF(D30<>"",G30,"") -> 333.3333333
B31: =IF(AND(D31<>"",OR(typediffere=2,typediffere=3),D30<dureediffere),"D",D31) -> 2 | C31: =IF(D31<>"",DATE(YEAR(C30),MONTH(C30)+1,DAY(C30)),"") -> 2020-09-01 | D31: =IF(AND(D30>0,D30<dureepret),D30+1,"") -> 2 | E31: 5895.182413 | F31: =IF(AND(D31<>"",B31=D31,typediffere=1),(pret*tauxinteret/100)/(12*(1-POWER(1+((tauxinteret/100)/12),-dureepret))),IF(AND(D31<>"",B31=D31,typediffere=2),(pret*tauxinteret/100)/(12*(1-POWER(1+((tauxinteret/100)/12),-dureepret+dureediffere))),IF(AND(D31<>"",B31="D",typediffere=2),G31,IF(AND(D31<>"",B31="D",typediffere=3),0,IF(AND(D31<>"",B31=D31,B30="D",typediffere=3),(J30*tauxinteret/100)/(12*(1-POWER(1+((tauxinteret/100)/12),-dureepret+dureediffere))),IF(AND(D31<>"",B31=D31,B30<>"D",typediffere=3),F30,"")))))) -> 5728.515746 | G31: =IF(D31<>"",J30*tauxinteret/100/12,"") -> 324.3413626 | H31: 166.6666667 | I31: =IF(AND(D31<>"",B31=D31),F31-G31,IF(AND(D31<>"",B31="D"),0,"")) -> 5404.174384 | J31: =IF(OR(AND(D31<>"",B31=D31),AND(D31<>"",B31="D",typediffere=2)),J30-F31+G31,IF(AND(D31<>"",B31="D",typediffere=3),J30+G31,"")) -> 189200.6432 | K31: =IF(D31<>"",K30+G31,"") -> 657.674696
B32: 3 | C32: 2020-10-01 | D32: 3 | E32: 5895.182413 | F32: 5728.515746 | G32: 315.3344053 | H32: 166.6666667 | I32: 5413.181341 | J32: 183787.4619 | K32: 973.0091013
B33: 4 | C33: 2020-11-01 | D33: 4 | E33: 5895.182413 | F33: 5728.515746 | G33: 306.3124364 | H33: 166.6666667 | I33: 5422.20331 | J33: 178365.2586 | K33: 1279.321538
B34: 5 | C34: 2020-12-01 | D34: 5 | E34: 5895.182413 | F34: 5728.515746 | G34: 297.2754309 | H34: 166.6666667 | I34: 5431.240316 | J34: 172934.0182 | K34: 1576.596969
B35: 6 | C35: 2021-01-01 | D35: 6 | E35: 5895.182413 | F35: 5728.515746 | G35: 288.2233637 | H35: 166.6666667 | I35: 5440.292383 | J35: 167493.7259 | K35: 1864.820332
B36: 7 | C36: 2021-02-01 | D36: 7 | E36: 5895.182413 | F36: 5728.515746 | G36: 279.1562098 | H36: 166.6666667 | I36: 5449.359537 | J36: 162044.3663 | K36: 2143.976542
B37: 8 | C37: 2021-03-01 | D37: 8 | E37: 5895.182413 | F37: 5728.515746 | G37: 270.0739439 | H37: 166.6666667 | I37: 5458.441803 | J37: 156585.9245 | K37: 2414.050486
B38: 9 | C38: 2021-04-01 | D38: 9 | E38: 5895.182413 | F38: 5728.515746 | G38: 260.9765409 | H38: 166.6666667 | I38: 5467.539206 | J38: 151118.3853 | K38: 2675.027027
B39: 10 | C39: 2021-05-01 | D39: 10 | E39: 5895.182413 | F39: 5728.515746 | G39: 251.8639755 | H39: 166.6666667 | I39: 5476.651771 | J39: 145641.7335 | K39: 2926.891002
B40: 11 | C40: 2021-06-01 | D40: 11 | E40: 5895.182413 | F40: 5728.515746 | G40: 242.7362226 | H40: 166.6666667 | I40: 5485.779524 | J40: 140155.954 | K40: 3169.627225
B41: 12 | C41: 2021-07-01 | D41: 12 | E41: 5895.182413 | F41: 5728.515746 | G41: 233.5932567 | H41: 166.6666667 | I41: 5494.92249 | J41: 134661.0315 | K41: 3403.220482
B42: 13 | C42: 2021-08-01 | D42: 13 | E42: 5895.182413 | F42: 5728.515746 | G42: 224.4350525 | H42: 166.6666667 | I42: 5504.080694 | J42: 129156.9508 | K42: 3627.655534
B43: 14 | C43: 2021-09-01 | D43: 14 | E43: 5895.182413 | F43: 5728.515746 | G43: 215.2615847 | H43: 166.6666667 | I43: 5513.254162 | J43: 123643.6967 | K43: 3842.917119
B44: 15 | C44: 2021-10-01 | D44: 15 | E44: 5895.182413 | F44: 5728.515746 | G44: 206.0728278 | H44: 166.6666667 | I44: 5522.442919 | J44: 118121.2537 | K44: 4048.989947
B45: 16 | C45: 2021-11-01 | D45: 16 | E45: 5895.182413 | F45: 5728.515746 | G45: 196.8687562 | H45: 166.6666667 | I45: 5531.64699 | J45: 112589.6068 | K45: 4245.858703
B46: 17 | C46: 2021-12-01 | D46: 17 | E46: 5895.182413 | F46: 5728.515746 | G46: 187.6493446 | H46: 166.6666667 | I46: 5540.866402 | J46: 107048.7404 | K46: 4433.508048
B47: 18 | C47: 2022-01-01 | D47: 18 | E47: 5895.182413 | F47: 5728.515746 | G47: 178.4145673 | H47: 166.6666667 | I47: 5550.101179 | J47: 101498.6392 | K47: 4611.922615
B48: 19 | C48: 2022-02-01 | D48: 19 | E48: 5895.182413 | F48: 5728.515746 | G48: 169.1643986 | H48: 166.6666667 | I48: 5559.351348 | J48: 95939.28783 | K48: 4781.087013
B49: 20 | C49: 2022-03-01 | D49: 20 | E49: 5895.182413 | F49: 5728.515746 | G49: 159.8988131 | H49: 166.6666667 | I49: 5568.616933 | J49: 90370.6709 | K49: 4940.985826
B50: 21 | C50: 2022-04-01 | D50: 21 | E50: 5895.182413 | F50: 5728.515746 | G50: 150.6177848 | H50: 166.6666667 | I50: 5577.897962 | J50: 84792.77293 | K50: 5091.603611
B51: 22 | C51: 2022-05-01 | D51: 22 | E51: 5895.182413 | F51: 5728.515746 | G51: 141.3212882 | H51: 166.6666667 | I51: 5587.194458 | J51: 79205.57848 | K51: 5232.9249
B52: 23 | C52: 2022-06-01 | D52: 23 | E52: 5895.182413 | F52: 5728.515746 | G52: 132.0092975 | H52: 166.6666667 | I52: 5596.506449 | J52: 73609.07203 | K52: 5364.934197
B53: 24 | C53: 2022-07-01 | D53: 24 | E53: 5895.182413 | F53: 5728.515746 | G53: 122.6817867 | H53: 166.6666667 | I53: 5605.83396 | J53: 68003.23807 | K53: 5487.615984
B54: 25 | C54: 2022-08-01 | D54: 25 | E54: 5895.182413 | F54: 5728.515746 | G54: 113.3387301 | H54: 166.6666667 | I54: 5615.177016 | J54: 62388.06105 | K54: 5600.954714
B55: 26 | C55: 2022-09-01 | D55: 26 | E55: 5895.182413 | F55: 5728.515746 | G55: 103.9801018 | H55: 166.6666667 | I55: 5624.535645 | J55: 56763.52541 | K55: 5704.934816
B56: 27 | C56: 2022-10-01 | D56: 27 | E56: 5895.182413 | F56: 5728.515746 | G56: 94.60587568 | H56: 166.6666667 | I56: 5633.909871 | J56: 51129.61554 | K56: 5799.540691
B57: 28 | C57: 2022-11-01 | D57: 28 | E57: 5895.182413 | F57: 5728.515746 | G57: 85.21602589 | H57: 166.6666667 | I57: 5643.299721 | J57: 45486.31582 | K57: 5884.756717
B58: 29 | C58: 2022-12-01 | D58: 29 | E58: 5895.182413 | F58: 5728.515746 | G58: 75.81052636 | H58: 166.6666667 | I58: 5652.70522 | J58: 39833.6106 | K58: 5960.567243
B59: 30 | C59: 2023-01-01 | D59: 30 | E59: 5895.182413 | F59: 5728.515746 | G59: 66.38935099 | H59: 166.6666667 | I59: 5662.126395 | J59: 34171.4842 | K59: 6026.956594
B60: 31 | C60: 2023-02-01 | D60: 31 | E60: 5895.182413 | F60: 5728.515746 | G60: 56.95247367 | H60: 166.6666667 | I60: 5671.563273 | J60: 28499.92093 | K60: 6083.909068
B61: 32 | C61: 2023-03-01 | D61: 32 | E61: 5895.182413 | F61: 5728.515746 | G61: 47.49986821 | H61: 166.6666667 | I61: 5681.015878 | J61: 22818.90505 | K61: 6131.408936
B62: 33 | C62: 2023-04-01 | D62: 33 | E62: 5895.182413 | F62: 5728.515746 | G62: 38.03150841 | H62: 166.6666667 | I62: 5690.484238 | J62: 17128.42081 | K62: 6169.440445
B63: 34 | C63: 2023-05-01 | D63: 34 | E63: 5895.182413 | F63: 5728.515746 | G63: 28.54736802 | H63: 166.6666667 | I63: 5699.968378 | J63: 11428.45243 | K63: 6197.987813
B64: 35 | C64: 2023-06-01 | D64: 35 | E64: 5895.182413 | F64: 5728.515746 | G64: 19.04742072 | H64: 166.6666667 | I64: 5709.468326 | J64: 5718.984106 | K64: 6217.035234
B65: 36 | C65: 2023-07-01 | D65: 36 | E65: 5895.182413 | F65: 5728.515746 | G65: 9.531640177 | H65: 166.6666667 | I65: 5718.984106 | J65: 8.190939482e-09 | K65: 6226.566874
E94: =IF(D94<>"",F94+H94,"") ->  | H94: =IF(D94<>"",pret*tauxassurance/100/12,"") -> 
B95: =IF(AND(D95<>"",OR(typediffere=2,typediffere=3),D94<dureediffere),"D",D95) ->  | C95: =IF(D95<>"",DATE(YEAR(C94),MONTH(C94)+1,DAY(C94)),"") ->  | D95: =IF(AND(D94>0,D94<dureepret),D94+1,"") ->  | F95: =IF(AND(D95<>"",B95=D95,typediffere=1),(pret*tauxinteret/100)/(12*(1-POWER(1+((tauxinteret/100)/12),-dureepret))),IF(AND(D95<>"",B95=D95,typediffere=2),(pret*tauxinteret/100)/(12*(1-POWER(1+((tauxinteret/100)/12),-dureepret+dureediffere))),IF(AND(D95<>"",B95="D",typediffere=2),G95,IF(AND(D95<>"",B95="D",typediffere=3),0,IF(AND(D95<>"",B95=D95,B94="D",typediffere=3),(J94*tauxinteret/100)/(12*(1-POWER(1+((tauxinteret/100)/12),-dureepret+dureediffere))),IF(AND(D95<>"",B95=D95,B94<>"D",typediffere=3),F94,"")))))) ->  | G95: =IF(D95<>"",J94*tauxinteret/100/12,"") ->  | I95: =IF(AND(D95<>"",B95=D95),F95-G95,IF(AND(D95<>"",B95="D"),0,"")) ->  | J95: =IF(OR(AND(D95<>"",B95=D95),AND(D95<>"",B95="D",typediffere=2)),J94-F95+G95,IF(AND(D95<>"",B95="D",typediffere=3),J94+G95,"")) ->  | K95: =IF(D95<>"",K94+G95,"") -> 
E158: =IF(D158<>"",F158+H158,"") ->  | H158: =IF(D158<>"",pret*tauxassurance/100/12,"") -> 
B159: =IF(AND(D159<>"",OR(typediffere=2,typediffere=3),D158<dureediffere),"D",D159) ->  | C159: =IF(D159<>"",DATE(YEAR(C158),MONTH(C158)+1,DAY(C158)),"") ->  | D159: =IF(AND(D158>0,D158<dureepret),D158+1,"") ->  | F159: =IF(AND(D159<>"",B159=D159,typediffere=1),(pret*tauxinteret/100)/(12*(1-POWER(1+((tauxinteret/100)/12),-dureepret))),IF(AND(D159<>"",B159=D159,typediffere=2),(pret*tauxinteret/100)/(12*(1-POWER(1+((tauxinteret/100)/12),-dureepret+dureediffere))),IF(AND(D159<>"",B159="D",typediffere=2),G159,IF(AND(D159<>"",B159="D",typediffere=3),0,IF(AND(D159<>"",B159=D159,B158="D",typediffere=3),(J158*tauxinteret/100)/(12*(1-POWER(1+((tauxinteret/100)/12),-dureepret+dureediffere))),IF(AND(D159<>"",B159=D159,B158<>"D",typediffere=3),F158,"")))))) ->  | G159: =IF(D159<>"",J158*tauxinteret/100/12,"") ->  | I159: =IF(AND(D159<>"",B159=D159),F159-G159,IF(AND(D159<>"",B159="D"),0,"")) ->  | J159: =IF(OR(AND(D159<>"",B159=D159),AND(D159<>"",B159="D",typediffere=2)),J158-F159+G159,IF(AND(D159<>"",B159="D",typediffere=3),J158+G159,"")) ->  | K159: =IF(D159<>"",K158+G159,"") -> 
E222: =IF(D222<>"",F222+H222,"") ->  | H222: =IF(D222<>"",pret*tauxassurance/100/12,"") -> 
B223: =IF(AND(D223<>"",OR(typediffere=2,typediffere=3),D222<dureediffere),"D",D223) ->  | C223: =IF(D223<>"",DATE(YEAR(C222),MONTH(C222)+1,DAY(C222)),"") ->  | D223: =IF(AND(D222>0,D222<dureepret),D222+1,"") ->  | F223: =IF(AND(D223<>"",B223=D223,typediffere=1),(pret*tauxinteret/100)/(12*(1-POWER(1+((tauxinteret/100)/12),-dureepret))),IF(AND(D223<>"",B223=D223,typediffere=2),(pret*tauxinteret/100)/(12*(1-POWER(1+((tauxinteret/100)/12),-dureepret+dureediffere))),IF(AND(D223<>"",B223="D",typediffere=2),G223,IF(AND(D223<>"",B223="D",typediffere=3),0,IF(AND(D223<>"",B223=D223,B222="D",typediffere=3),(J222*tauxinteret/100)/(12*(1-POWER(1+((tauxinteret/100)/12),-dureepret+dureediffere))),IF(AND(D223<>"",B223=D223,B222<>"D",typediffere=3),F222,"")))))) ->  | G223: =IF(D223<>"",J222*tauxinteret/100/12,"") ->  | I223: =IF(AND(D223<>"",B223=D223),F223-G223,IF(AND(D223<>"",B223="D"),0,"")) ->  | J223: =IF(OR(AND(D223<>"",B223=D223),AND(D223<>"",B223="D",typediffere=2)),J222-F223+G223,IF(AND(D223<>"",B223="D",typediffere=3),J222+G223,"")) ->  | K223: =IF(D223<>"",K222+G223,"") -> 
E286: =IF(D286<>"",F286+H286,"") ->  | H286: =IF(D286<>"",pret*tauxassurance/100/12,"") -> 
B287: =IF(AND(D287<>"",OR(typediffere=2,typediffere=3),D286<dureediffere),"D",D287) ->  | C287: =IF(D287<>"",DATE(YEAR(C286),MONTH(C286)+1,DAY(C286)),"") ->  | D287: =IF(AND(D286>0,D286<dureepret),D286+1,"") ->  | F287: =IF(AND(D287<>"",B287=D287,typediffere=1),(pret*tauxinteret/100)/(12*(1-POWER(1+((tauxinteret/100)/12),-dureepret))),IF(AND(D287<>"",B287=D287,typediffere=2),(pret*tauxinteret/100)/(12*(1-POWER(1+((tauxinteret/100)/12),-dureepret+dureediffere))),IF(AND(D287<>"",B287="D",typediffere=2),G287,IF(AND(D287<>"",B287="D",typediffere=3),0,IF(AND(D287<>"",B287=D287,B286="D",typediffere=3),(J286*tauxinteret/100)/(12*(1-POWER(1+((tauxinteret/100)/12),-dureepret+dureediffere))),IF(AND(D287<>"",B287=D287,B286<>"D",typediffere=3),F286,"")))))) ->  | G287: =IF(D287<>"",J286*tauxinteret/100/12,"") ->  | I287: =IF(AND(D287<>"",B287=D287),F287-G287,IF(AND(D287<>"",B287="D"),0,"")) ->  | J287: =IF(OR(AND(D287<>"",B287=D287),AND(D287<>"",B287="D",typediffere=2)),J286-F287+G287,IF(AND(D287<>"",B287="D",typediffere=3),J286+G287,"")) ->  | K287: =IF(D287<>"",K286+G287,"") -> 
E350: =IF(D350<>"",F350+H350,"") ->  | H350: =IF(D350<>"",pret*tauxassurance/100/12,"") -> 
B351: =IF(AND(D351<>"",OR(typediffere=2,typediffere=3),D350<dureediffere),"D",D351) ->  | C351: =IF(D351<>"",DATE(YEAR(C350),MONTH(C350)+1,DAY(C350)),"") ->  | D351: =IF(AND(D350>0,D350<dureepret),D350+1,"") ->  | F351: =IF(AND(D351<>"",B351=D351,typediffere=1),(pret*tauxinteret/100)/(12*(1-POWER(1+((tauxinteret/100)/12),-dureepret))),IF(AND(D351<>"",B351=D351,typediffere=2),(pret*tauxinteret/100)/(12*(1-POWER(1+((tauxinteret/100)/12),-dureepret+dureediffere))),IF(AND(D351<>"",B351="D",typediffere=2),G351,IF(AND(D351<>"",B351="D",typediffere=3),0,IF(AND(D351<>"",B351=D351,B350="D",typediffere=3),(J350*tauxinteret/100)/(12*(1-POWER(1+((tauxinteret/100)/12),-dureepret+dureediffere))),IF(AND(D351<>"",B351=D351,B350<>"D",typediffere=3),F350,"")))))) ->  | G351: =IF(D351<>"",J350*tauxinteret/100/12,"") ->  | I351: =IF(AND(D351<>"",B351=D351),F351-G351,IF(AND(D351<>"",B351="D"),0,"")) ->  | J351: =IF(OR(AND(D351<>"",B351=D351),AND(D351<>"",B351="D",typediffere=2)),J350-F351+G351,IF(AND(D351<>"",B351="D",typediffere=3),J350+G351,"")) ->  | K351: =IF(D351<>"",K350+G351,"") -> 
E414: =IF(D414<>"",F414+H414,"") ->  | H414: =IF(D414<>"",pret*tauxassurance/100/12,"") -> 
B415: =IF(AND(D415<>"",OR(typediffere=2,typediffere=3),D414<dureediffere),"D",D415) ->  | C415: =IF(D415<>"",DATE(YEAR(C414),MONTH(C414)+1,DAY(C414)),"") ->  | D415: =IF(AND(D414>0,D414<dureepret),D414+1,"") ->  | F415: =IF(AND(D415<>"",B415=D415,typediffere=1),(pret*tauxinteret/100)/(12*(1-POWER(1+((tauxinteret/100)/12),-dureepret))),IF(AND(D415<>"",B415=D415,typediffere=2),(pret*tauxinteret/100)/(12*(1-POWER(1+((tauxinteret/100)/12),-dureepret+dureediffere))),IF(AND(D415<>"",B415="D",typediffere=2),G415,IF(AND(D415<>"",B415="D",typediffere=3),0,IF(AND(D415<>"",B415=D415,B414="D",typediffere=3),(J414*tauxinteret/100)/(12*(1-POWER(1+((tauxinteret/100)/12),-dureepret+dureediffere))),IF(AND(D415<>"",B415=D415,B414<>"D",typediffere=3),F414,"")))))) ->  | G415: =IF(D415<>"",J414*tauxinteret/100/12,"") ->  | I415: =IF(AND(D415<>"",B415=D415),F415-G415,IF(AND(D415<>"",B415="D"),0,"")) ->  | J415: =IF(OR(AND(D415<>"",B415=D415),AND(D415<>"",B415="D",typediffere=2)),J414-F415+G415,IF(AND(D415<>"",B415="D",typediffere=3),J414+G415,"")) ->  | K415: =IF(D415<>"",K414+G415,"") -> 
E478: =IF(D478<>"",F478+H478,"") ->  | H478: =IF(D478<>"",pret*tauxassurance/100/12,"") -> 
B479: =IF(AND(D479<>"",OR(typediffere=2,typediffere=3),D478<dureediffere),"D",D479) ->  | C479: =IF(D479<>"",DATE(YEAR(C478),MONTH(C478)+1,DAY(C478)),"") ->  | D479: =IF(AND(D478>0,D478<dureepret),D478+1,"") ->  | F479: =IF(AND(D479<>"",B479=D479,typediffere=1),(pret*tauxinteret/100)/(12*(1-POWER(1+((tauxinteret/100)/12),-dureepret))),IF(AND(D479<>"",B479=D479,typediffere=2),(pret*tauxinteret/100)/(12*(1-POWER(1+((tauxinteret/100)/12),-dureepret+dureediffere))),IF(AND(D479<>"",B479="D",typediffere=2),G479,IF(AND(D479<>"",B479="D",typediffere=3),0,IF(AND(D479<>"",B479=D479,B478="D",typediffere=3),(J478*tauxinteret/100)/(12*(1-POWER(1+((tauxinteret/100)/12),-dureepret+dureediffere))),IF(AND(D479<>"",B479=D479,B478<>"D",typediffere=3),F478,"")))))) ->  | G479: =IF(D479<>"",J478*tauxinteret/100/12,"") ->  | I479: =IF(AND(D479<>"",B479=D479),F479-G479,IF(AND(D479<>"",B479="D"),0,"")) ->  | J479: =IF(OR(AND(D479<>"",B479=D479),AND(D479<>"",B479="D",typediffere=2)),J478-F479+G479,IF(AND(D479<>"",B479="D",typediffere=3),J478+G479,"")) ->  | K479: =IF(D479<>"",K478+G479,"") -> 
E542: =IF(D542<>"",F542+H542,"") ->  | H542: =IF(D542<>"",pret*tauxassurance/100/12,"") -> 
B543: =IF(AND(D543<>"",OR(typediffere=2,typediffere=3),D542<dureediffere),"D",D543) ->  | C543: =IF(D543<>"",DATE(YEAR(C542),MONTH(C542)+1,DAY(C542)),"") ->  | D543: =IF(AND(D542>0,D542<dureepret),D542+1,"") ->  | F543: =IF(AND(D543<>"",B543=D543,typediffere=1),(pret*tauxinteret/100)/(12*(1-POWER(1+((tauxinteret/100)/12),-dureepret))),IF(AND(D543<>"",B543=D543,typediffere=2),(pret*tauxinteret/100)/(12*(1-POWER(1+((tauxinteret/100)/12),-dureepret+dureediffere))),IF(AND(D543<>"",B543="D",typediffere=2),G543,IF(AND(D543<>"",B543="D",typediffere=3),0,IF(AND(D543<>"",B543=D543,B542="D",typediffere=3),(J542*tauxinteret/100)/(12*(1-POWER(1+((tauxinteret/100)/12),-dureepret+dureediffere))),IF(AND(D543<>"",B543=D543,B542<>"D",typediffere=3),F542,"")))))) ->  | G543: =IF(D543<>"",J542*tauxinteret/100/12,"") ->  | I543: =IF(AND(D543<>"",B543=D543),F543-G543,IF(AND(D543<>"",B543="D"),0,"")) ->  | J543: =IF(OR(AND(D543<>"",B543=D543),AND(D543<>"",B543="D",typediffere=2)),J542-F543+G543,IF(AND(D543<>"",B543="D",typediffere=3),J542+G543,"")) ->  | K543: =IF(D543<>"",K542+G543,"") -> 
E606: =IF(D606<>"",F606+H606,"") ->  | H606: =IF(D606<>"",pret*tauxassurance/100/12,"") -> 
B607: =IF(AND(D607<>"",OR(typediffere=2,typediffere=3),D606<dureediffere),"D",D607) ->  | C607: =IF(D607<>"",DATE(YEAR(C606),MONTH(C606)+1,DAY(C606)),"") ->  | D607: =IF(AND(D606>0,D606<dureepret),D606+1,"") ->  | F607: =IF(AND(D607<>"",B607=D607,typediffere=1),(pret*tauxinteret/100)/(12*(1-POWER(1+((tauxinteret/100)/12),-dureepret))),IF(AND(D607<>"",B607=D607,typediffere=2),(pret*tauxinteret/100)/(12*(1-POWER(1+((tauxinteret/100)/12),-dureepret+dureediffere))),IF(AND(D607<>"",B607="D",typediffere=2),G607,IF(AND(D607<>"",B607="D",typediffere=3),0,IF(AND(D607<>"",B607=D607,B606="D",typediffere=3),(J606*tauxinteret/100)/(12*(1-POWER(1+((tauxinteret/100)/12),-dureepret+dureediffere))),IF(AND(D607<>"",B607=D607,B606<>"D",typediffere=3),F606,"")))))) ->  | G607: =IF(D607<>"",J606*tauxinteret/100/12,"") ->  | I607: =IF(AND(D607<>"",B607=D607),F607-G607,IF(AND(D607<>"",B607="D"),0,"")) ->  | J607: =IF(OR(AND(D607<>"",B607=D607),AND(D607<>"",B607="D",typediffere=2)),J606-F607+G607,IF(AND(D607<>"",B607="D",typediffere=3),J606+G607,"")) ->  | K607: =IF(D607<>"",K606+G607,"") -> 
E670: =IF(D670<>"",F670+H670,"") ->  | H670: =IF(D670<>"",pret*tauxassurance/100/12,"") -> 
B671: =IF(AND(D671<>"",OR(typediffere=2,typediffere=3),D670<dureediffere),"D",D671) ->  | C671: =IF(D671<>"",DATE(YEAR(C670),MONTH(C670)+1,DAY(C670)),"") ->  | D671: =IF(AND(D670>0,D670<dureepret),D670+1,"") ->  | F671: =IF(AND(D671<>"",B671=D671,typediffere=1),(pret*tauxinteret/100)/(12*(1-POWER(1+((tauxinteret/100)/12),-dureepret))),IF(AND(D671<>"",B671=D671,typediffere=2),(pret*tauxinteret/100)/(12*(1-POWER(1+((tauxinteret/100)/12),-dureepret+dureediffere))),IF(AND(D671<>"",B671="D",typediffere=2),G671,IF(AND(D671<>"",B671="D",typediffere=3),0,IF(AND(D671<>"",B671=D671,B670="D",typediffere=3),(J670*tauxinteret/100)/(12*(1-POWER(1+((tauxinteret/100)/12),-dureepret+dureediffere))),IF(AND(D671<>"",B671=D671,B670<>"D",typediffere=3),F670,"")))))) ->  | G671: =IF(D671<>"",J670*tauxinteret/100/12,"") ->  | I671: =IF(AND(D671<>"",B671=D671),F671-G671,IF(AND(D671<>"",B671="D"),0,"")) ->  | J671: =IF(OR(AND(D671<>"",B671=D671),AND(D671<>"",B671="D",typediffere=2)),J670-F671+G671,IF(AND(D671<>"",B671="D",typediffere=3),J670+G671,"")) ->  | K671: =IF(D671<>"",K670+G671,"") -> 
E734: =IF(D734<>"",F734+H734,"") ->  | H734: =IF(D734<>"",pret*tauxassurance/100/12,"") -> 
B735: =IF(AND(D735<>"",OR(typediffere=2,typediffere=3),D734<dureediffere),"D",D735) ->  | C735: =IF(D735<>"",DATE(YEAR(C734),MONTH(C734)+1,DAY(C734)),"") ->  | D735: =IF(AND(D734>0,D734<dureepret),D734+1,"") ->  | F735: =IF(AND(D735<>"",B735=D735,typediffere=1),(pret*tauxinteret/100)/(12*(1-POWER(1+((tauxinteret/100)/12),-dureepret))),IF(AND(D735<>"",B735=D735,typediffere=2),(pret*tauxinteret/100)/(12*(1-POWER(1+((tauxinteret/100)/12),-dureepret+dureediffere))),IF(AND(D735<>"",B735="D",typediffere=2),G735,IF(AND(D735<>"",B735="D",typediffere=3),0,IF(AND(D735<>"",B735=D735,B734="D",typediffere=3),(J734*tauxinteret/100)/(12*(1-POWER(1+((tauxinteret/100)/12),-dureepret+dureediffere))),IF(AND(D735<>"",B735=D735,B734<>"D",typediffere=3),F734,"")))))) ->  | G735: =IF(D735<>"",J734*tauxinteret/100/12,"") ->  | I735: =IF(AND(D735<>"",B735=D735),F735-G735,IF(AND(D735<>"",B735="D"),0,"")) ->  | J735: =IF(OR(AND(D735<>"",B735=D735),AND(D735<>"",B735="D",typediffere=2)),J734-F735+G735,IF(AND(D735<>"",B735="D",typediffere=3),J734+G735,"")) ->  | K735: =IF(D735<>"",K734+G735,"") -> 
E798: =IF(D798<>"",F798+H798,"") ->  | H798: =IF(D798<>"",pret*tauxassurance/100/12,"") -> 
B799: =IF(AND(D799<>"",OR(typediffere=2,typediffere=3),D798<dureediffere),"D",D799) ->  | C799: =IF(D799<>"",DATE(YEAR(C798),MONTH(C798)+1,DAY(C798)),"") ->  | D799: =IF(AND(D798>0,D798<dureepret),D798+1,"") ->  | F799: =IF(AND(D799<>"",B799=D799,typediffere=1),(pret*tauxinteret/100)/(12*(1-POWER(1+((tauxinteret/100)/12),-dureepret))),IF(AND(D799<>"",B799=D799,typediffere=2),(pret*tauxinteret/100)/(12*(1-POWER(1+((tauxinteret/100)/12),-dureepret+dureediffere))),IF(AND(D799<>"",B799="D",typediffere=2),G799,IF(AND(D799<>"",B799="D",typediffere=3),0,IF(AND(D799<>"",B799=D799,B798="D",typediffere=3),(J798*tauxinteret/100)/(12*(1-POWER(1+((tauxinteret/100)/12),-dureepret+dureediffere))),IF(AND(D799<>"",B799=D799,B798<>"D",typediffere=3),F798,"")))))) ->  | G799: =IF(D799<>"",J798*tauxinteret/100/12,"") ->  | I799: =IF(AND(D799<>"",B799=D799),F799-G799,IF(AND(D799<>"",B799="D"),0,"")) ->  | J799: =IF(OR(AND(D799<>"",B799=D799),AND(D799<>"",B799="D",typediffere=2)),J798-F799+G799,IF(AND(D799<>"",B799="D",typediffere=3),J798+G799,"")) ->  | K799: =IF(D799<>"",K798+G799,"") -> 
E862: =IF(D862<>"",F862+H862,"") ->  | H862: =IF(D862<>"",pret*tauxassurance/100/12,"") -> 
B863: =IF(AND(D863<>"",OR(typediffere=2,typediffere=3),D862<dureediffere),"D",D863) ->  | C863: =IF(D863<>"",DATE(YEAR(C862),MONTH(C862)+1,DAY(C862)),"") ->  | D863: =IF(AND(D862>0,D862<dureepret),D862+1,"") ->  | F863: =IF(AND(D863<>"",B863=D863,typediffere=1),(pret*tauxinteret/100)/(12*(1-POWER(1+((tauxinteret/100)/12),-dureepret))),IF(AND(D863<>"",B863=D863,typediffere=2),(pret*tauxinteret/100)/(12*(1-POWER(1+((tauxinteret/100)/12),-dureepret+dureediffere))),IF(AND(D863<>"",B863="D",typediffere=2),G863,IF(AND(D863<>"",B863="D",typediffere=3),0,IF(AND(D863<>"",B863=D863,B862="D",typediffere=3),(J862*tauxinteret/100)/(12*(1-POWER(1+((tauxinteret/100)/12),-dureepret+dureediffere))),IF(AND(D863<>"",B863=D863,B862<>"D",typediffere=3),F862,"")))))) ->  | G863: =IF(D863<>"",J862*tauxinteret/100/12,"") ->  | I863: =IF(AND(D863<>"",B863=D863),F863-G863,IF(AND(D863<>"",B863="D"),0,"")) ->  | J863: =IF(OR(AND(D863<>"",B863=D863),AND(D863<>"",B863="D",typediffere=2)),J862-F863+G863,IF(AND(D863<>"",B863="D",typediffere=3),J862+G863,"")) ->  | K863: =IF(D863<>"",K862+G863,"") -> 
E926: =IF(D926<>"",F926+H926,"") ->  | H926: =IF(D926<>"",pret*tauxassurance/100/12,"") -> 
B927: =IF(AND(D927<>"",OR(typediffere=2,typediffere=3),D926<dureediffere),"D",D927) ->  | C927: =IF(D927<>"",DATE(YEAR(C926),MONTH(C926)+1,DAY(C926)),"") ->  | D927: =IF(AND(D926>0,D926<dureepret),D926+1,"") ->  | F927: =IF(AND(D927<>"",B927=D927,typediffere=1),(pret*tauxinteret/100)/(12*(1-POWER(1+((tauxinteret/100)/12),-dureepret))),IF(AND(D927<>"",B927=D927,typediffere=2),(pret*tauxinteret/100)/(12*(1-POWER(1+((tauxinteret/100)/12),-dureepret+dureediffere))),IF(AND(D927<>"",B927="D",typediffere=2),G927,IF(AND(D927<>"",B927="D",typediffere=3),0,IF(AND(D927<>"",B927=D927,B926="D",typediffere=3),(J926*tauxinteret/100)/(12*(1-POWER(1+((tauxinteret/100)/12),-dureepret+dureediffere))),IF(AND(D927<>"",B927=D927,B926<>"D",typediffere=3),F926,"")))))) ->  | G927: =IF(D927<>"",J926*tauxinteret/100/12,"") ->  | I927: =IF(AND(D927<>"",B927=D927),F927-G927,IF(AND(D927<>"",B927="D"),0,"")) ->  | J927: =IF(OR(AND(D927<>"",B927=D927),AND(D927<>"",B927="D",typediffere=2)),J926-F927+G927,IF(AND(D927<>"",B927="D",typediffere=3),J926+G927,"")) ->  | K927: =IF(D927<>"",K926+G927,"") -> 
E990: =IF(D990<>"",F990+H990,"") ->  | H990: =IF(D990<>"",pret*tauxassurance/100/12,"") -> 
B991: =IF(AND(D991<>"",OR(typediffere=2,typediffere=3),D990<dureediffere),"D",D991) ->  | C991: =IF(D991<>"",DATE(YEAR(C990),MONTH(C990)+1,DAY(C990)),"") ->  | D991: =IF(AND(D990>0,D990<dureepret),D990+1,"") ->  | F991: =IF(AND(D991<>"",B991=D991,typediffere=1),(pret*tauxinteret/100)/(12*(1-POWER(1+((tauxinteret/100)/12),-dureepret))),IF(AND(D991<>"",B991=D991,typediffere=2),(pret*tauxinteret/100)/(12*(1-POWER(1+((tauxinteret/100)/12),-dureepret+dureediffere))),IF(AND(D991<>"",B991="D",typediffere=2),G991,IF(AND(D991<>"",B991="D",typediffere=3),0,IF(AND(D991<>"",B991=D991,B990="D",typediffere=3),(J990*tauxinteret/100)/(12*(1-POWER(1+((tauxinteret/100)/12),-dureepret+dureediffere))),IF(AND(D991<>"",B991=D991,B990<>"D",typediffere=3),F990,"")))))) ->  | G991: =IF(D991<>"",J990*tauxinteret/100/12,"") ->  | I991: =IF(AND(D991<>"",B991=D991),F991-G991,IF(AND(D991<>"",B991="D"),0,"")) ->  | J991: =IF(OR(AND(D991<>"",B991=D991),AND(D991<>"",B991="D",typediffere=2)),J990-F991+G991,IF(AND(D991<>"",B991="D",typediffere=3),J990+G991,"")) ->  | K991: =IF(D991<>"",K990+G991,"") -> 

Sheet Dictionary
A1: Dictionary English | B1: English | C1: Francais | D1: Deutsch | E1: Italiano | F1: Espanol | G1: Portugues
A2: Mortgage calculator | B2: Mortgage calculator | C2: Tableau d'amortissement | D2: Amortisationstabelle | E2: Tabella di ammortamento | F2: Tabla de amortización | G2: Simulador de crédito
A3: Mortgage data | B3: Mortgage data | C3: Données concernant le prêt | D3: Kreditdaten | E3: Dati di prestito | F3: Datos de prestamo | G3: Dados do empréstimo
A4: Start date | B4: Start date | C4: Date de début | D4: Startdatum | E4: Data di inizio | F4: Fecha de inicio | G4: Data de início
A5: Mortgage amount | B5: Mortgage amount | C5: Montant du prêt | D5: Darlehensbetrag | E5: Importo del prestito | F5: Importe del préstamo | G5: Montante do empréstimo
A6: Mortgage term | B6: Mortgage term | C6: Durée | D6: Dauer | E6: Durata | F6: Duración | G6: Prazo
A7: Interest rate per year | B7: Interest rate per year | C7: Taux d'intérêt | D7: Zinssatz | E7: Tasso di interesse | F7: Tasa de interés | G7: Taxa de juros
A8: Insurance rate | B8: Insurance rate | C8: Taux d'assurance | D8: Versicherungspreis | E8: Tasso di assicurazione | F8: Tasa de seguro | G8: Taux d'assurance
A9: % of borrowed amount | B9: % of borrowed amount | C9: % du montant emprunté | D9: % des geliehenen Betrags | E9: % dell'importo preso in prestito | F9: % de la cantidad prestada | G9: % do montante emprestado
A10: Deferred repayment | B10: Deferred repayment | C10: Différé de remboursement | D10: Zurückgestellte Abschreibung | E10: Rimborso differito | F10: Pago diferido | G10: Reembolso diferido
A11: Type | B11: Type | C11: Type de différé | D11: Zurückgestellte Abschreibung | E11: Tipo di differito | F11: Tipo diferido | G11: Tipo de diferido
A12: Duration | B12: Duration | C12: Durée du différé | D12: Dauer | E12: Durata | F12: Duración del diferido | G12: Duração
A13: Without delay | B13: Without delay | C13: Sans Différé | D13: Ohne | E13: Senza | F13: Sin | G13: Sem
A14: Partial (with interest payment) | B14: Partial (with interest payment) | C14: Différé Partiel (avec paiement des intérêts) | D14: Teilweise (mit Zinszahlung) | E14: Partiele (con pagamento degli interessi) | F14: Parcial (con pago de intereses) | G14: Partial (com pagamento de juros)
A15: Total (without interest payment) | B15: Total (without interest payment) | C15: Différé Total (sans paiement des intérêts) | D15: Gesamt (ohne Zinszahlung) | E15: Totale (senza pagamento di interessi) | F15: Total (sin pago de intereses) | G15: Total (sem pagamento de juros)
A16: months | B16: months | C16: mois | D16: Monat(e) | E16: mese | F16: mes | G16: mês
A17: Mortgage cost | B17: Mortgage cost | C17: Coût global du prêt | D17: Gesamtkosten des Darlehens | E17: Costo complessivo del prestito | F17: Costo total del préstamo | G17: Coût global du prêt
A18: Total Interest | B18: Total Interest | C18: Coût des intérêts | D18: Kosten von Interesse | E18: Costo di interesse | F18: Costo de interés | G18: Custo de juros
A19: Total insurance | B19: Total insurance | C19: Coût de l'assurance | D19: Versicherungskosten | E19: Costo dell'assicurazione | F19: Costo del seguro | G19: Custos de seguro
A20: Total cost | B20: Total cost | C20: Coût total du prêt | D20: Gesamtkosten des Darlehens | E20: Costo totale del prestito | F20: Costo total del préstamo | G20: Custo total do empréstimo
A21: £ | B21: £ | C21: € | D21: € | E21: € | F21: € | G21: €
A22: Amortization schedule calculator | B22: Amortization schedule calculator | C22: Tableau d'amortissement | D22: Amortisationstabelle | E22: Tabella di ammortamento | F22: Tabla de amortización | G22: Simulador de crédito
A23: Date | B23: Date | C23: Date | D23: Datum | E23: Data | F23: Fecha | G23: Data
A24: No. | B24: No. | C24: No. d'échéance | D24: Fälligkeitsnummer | E24: N. pagamento | F24: Cantidad de pagos | G24: Mês
A25: Monthly payment with insurance | B25: Monthly payment with insurance | C25: Mensualité avec assurance | D25: Monatlich mit Versicherung | E25: Mensile con assicurazione | F25: Pago mensual con seguro | G25: Pagamento mensal com seguro
A26: Monthly payment without insurance | B26: Monthly payment without insurance | C26: Mensualité hors assurance | D26: Monatlich Versicherung ausgeschlossen | E26: Mensile esclusa l'assicurazione | F26: Pago mensual sin seguro | G26: Pagamento mensal excluindo seguro
A27: Interest | B27: Interest | C27: Intérêts | D27: Zinsen | E27: Interessi | F27: Intereses | G27: Juros
A28: Insurance | B28: Insurance | C28: Assurance | D28: Versicherung | E28: Assicurazione | F28: Seguro | G28: Seguro
A29: Principal | B29: Principal | C29: Capital remboursé | D29: Kapital zurückerstattet | E29: Capitale rimborsato | F29: Capital pagado | G29: Capital peembolsado
A30: Balance | B30: Balance | C30: Capital restant dû | D30: Kapital fällig bleiben | E30: Capitale rimanente | F30: Capital restante | G30: Capital restante
A31: Total Interest | B31: Total Interest | C31: Cumul des intérêts | D31: Kumulierte Zinsen | E31: Interesse cumulativo | F31: Interés acumulado | G31: Juros acumulados
A32: January | B32: January | C32: Janvier | D32: Januar | E32: gennaio | F32: enero | G32: janeiro
A33: February | B33: February | C33: Février | D33: Februar | E33: febbraio | F33: febrero | G33: fevereiro
A34: March | B34: March | C34: Mars | D34: März | E34: marzo | F34: marzo | G34: março
A35: April | B35: April | C35: Avril | D35: April | E35: aprile | F35: abril | G35: abril
A36: May | B36: May | C36: Mai | D36: Mai | E36: maggio | F36: mayo | G36: maio
A37: June | B37: June | C37: Juin | D37: Juni | E37: giugno | F37: junio | G37: junho
A38: July | B38: July | C38: Juillet | D38: Juli | E38: luglio | F38: julio | G38: julho
A39: August | B39: August | C39: Aout | D39: August | E39: agosto | F39: agosto | G39: agosto
A40: September | B40: September | C40: Septembre | D40: September | E40: settembre | F40: septiembre | G40: setembro
A41: October | B41: October | C41: Octobre | D41: Oktober | E41: ottobre | F41: octubre | G41: outubro
A42: November | B42: November | C42: Novembre | D42: November | E42: novembre | F42: noviembre | G42: novembro
A43: December | B43: December | C43: Décembre | D43: Dezember | E43: dicembre | F43: diciembre | G43: dezembro

Sheet Month mapping (hidden)
A1: 1 | B1: Jan
A2: 2 | B2: Feb
A3: 3 | B3: Mar
A4: 4 | B4: Apr
A5: 5 | B5: May
A6: 6 | B6: Jun
A7: 7 | B7: Jul
A8: 8 | B8: Aug
A9: 9 | B9: Sep
A10: 10 | B10: Oct
A11: 11 | B11: Nov
A12: 12 | B12: Dec
